Department Family,Entity,Date,Expense Type,Expense Area,Supplier,Transaction Number,AP Amount,Description,Supplier Postcode
Department of Health,NHS Sheffield CCG,4/30/2020,C&M-PMS Contract Value,PRC DELEGATED CO-COMMISSIONING,ABBEY LANE SURGERY,31798226,"23,648.83",PRC DELEGATED CO-COMMISSIONING,S8 0BJ
Department of Health,NHS Sheffield CCG,4/30/2020,C&M-PMS PCN DES Participation,PRC DELEGATED CO-COMMISSIONING,ABBEY LANE SURGERY,31798226,452.23,PRC DELEGATED CO-COMMISSIONING,S8 0BJ
Department of Health,NHS Sheffield CCG,4/30/2020,C&M-PMS PCO Locum Adop/Pat/Mat,PRC DELEGATED CO-COMMISSIONING,ABBEY LANE SURGERY,31798226,"1,880.20",PRC DELEGATED CO-COMMISSIONING,S8 0BJ
Department of Health,NHS Sheffield CCG,4/30/2020,C&M-PMS Prem Notional Rent,PRC DELEGATED CO-COMMISSIONING,ABBEY LANE SURGERY,31798226,"2,122.92",PRC DELEGATED CO-COMMISSIONING,S8 0BJ
Department of Health,NHS Sheffield CCG,4/30/2020,Cont Care-Physical Disab (65+),CHC ADULT FULLY FUNDED,ABBEYCARE NURSING,32005020,"51,722.10",CHC ADULT FULLY FUNDED,S35 9YY
Department of Health,NHS Sheffield CCG,4/30/2020,Computer Software/License,COMMISSIONING - NON ACUTE,ADVANCED DIGITAL INSTITUTE,31760861,"48,000.00",COMMISSIONING - NON ACUTE,BD18 3LA
Department of Health,NHS Sheffield CCG,4/30/2020,Computer Software/License,COMMISSIONING - NON ACUTE,ADVANCED DIGITAL INSTITUTE,31986408,"115,800.00",COMMISSIONING - NON ACUTE,BD18 3LA
Department of Health,NHS Sheffield CCG,4/30/2020,C&M-PMS Contract Value,PRC DELEGATED CO-COMMISSIONING,AVENUE MEDICAL CENTRE SHEFFIELD,32110310,"51,922.08",PRC DELEGATED CO-COMMISSIONING,S8 7FH
Department of Health,NHS Sheffield CCG,4/30/2020,C&M-PMS GP Statutory Levy,PRC DELEGATED CO-COMMISSIONING,AVENUE MEDICAL CENTRE SHEFFIELD,32110310,-248.68,PRC DELEGATED CO-COMMISSIONING,S8 7FH
Department of Health,NHS Sheffield CCG,4/30/2020,C&M-PMS PCN DES Participation,PRC DELEGATED CO-COMMISSIONING,AVENUE MEDICAL CENTRE SHEFFIELD,32110310,"1,058.32",PRC DELEGATED CO-COMMISSIONING,S8 7FH
Department of Health,NHS Sheffield CCG,4/30/2020,C&M-PMS Prem Notional Rent,PRC DELEGATED CO-COMMISSIONING,AVENUE MEDICAL CENTRE SHEFFIELD,32110310,"5,546.67",PRC DELEGATED CO-COMMISSIONING,S8 7FH
Department of Health,NHS Sheffield CCG,4/30/2020,C&M-PMS Prem Rates,PRC DELEGATED CO-COMMISSIONING,AVENUE MEDICAL CENTRE SHEFFIELD,32110310,"1,284.25",PRC DELEGATED CO-COMMISSIONING,S8 7FH
Department of Health,NHS Sheffield CCG,4/30/2020,Hcare Srv Rec Fdtn Trust-Contract Baseline,ACUTE COMMISSIONING,BARNSLEY HOSPITAL NHS FOUNDATION TRUST,31848487,"131,016.71",ACUTE COMMISSIONING,S75 2EP
Department of Health,NHS Sheffield CCG,4/30/2020,Hcare Srv Rec Fdtn Trust-Contract Baseline,ACUTE COMMISSIONING,BARNSLEY HOSPITAL NHS FOUNDATION TRUST,32030215,"232,059.00",ACUTE COMMISSIONING,S75 2EP
Department of Health,NHS Sheffield CCG,4/30/2020,C&M-GMS Global Sum,PRC DELEGATED CO-COMMISSIONING,BASLOW ROAD & SHOREHAM STREET SURGERIES,32047304,"99,954.48",PRC DELEGATED CO-COMMISSIONING,S17 4DR
Department of Health,NHS Sheffield CCG,4/30/2020,C&M-GMS PCN DES Participation,PRC DELEGATED CO-COMMISSIONING,BASLOW ROAD & SHOREHAM STREET SURGERIES,32047304,"2,012.54",PRC DELEGATED CO-COMMISSIONING,S17 4DR
Department of Health,NHS Sheffield CCG,4/30/2020,C&M-GMS Prem Notional Rent,PRC DELEGATED CO-COMMISSIONING,BASLOW ROAD & SHOREHAM STREET SURGERIES,32047304,"8,222.71",PRC DELEGATED CO-COMMISSIONING,S17 4DR
Department of Health,NHS Sheffield CCG,4/30/2020,C&M-GMS Prem Rates,PRC DELEGATED CO-COMMISSIONING,BASLOW ROAD & SHOREHAM STREET SURGERIES,32047304,"2,626.18",PRC DELEGATED CO-COMMISSIONING,S17 4DR
Department of Health,NHS Sheffield CCG,4/30/2020,C&M-GMS Prem Water Rates,PRC DELEGATED CO-COMMISSIONING,BASLOW ROAD & SHOREHAM STREET SURGERIES,32047304,105.67,PRC DELEGATED CO-COMMISSIONING,S17 4DR
Department of Health,NHS Sheffield CCG,4/30/2020,C&M-GMS QOF Aspiration,PRC DELEGATED CO-COMMISSIONING,BASLOW ROAD & SHOREHAM STREET SURGERIES,32047304,"10,278.96",PRC DELEGATED CO-COMMISSIONING,S17 4DR
Department of Health,NHS Sheffield CCG,4/30/2020,Cont Care-Physical Disab (65+),CHC ADULT FULLY FUNDED,BC SHEFFIELD LTD,31958400,"38,229.75",CHC ADULT FULLY FUNDED,S9 2TJ
Department of Health,NHS Sheffield CCG,4/30/2020,Cont Care-Physical Disab (65+),CHC ADULT FULLY FUNDED,BC SHEFFIELD LTD,32124207,"39,504.08",https://nww.einvoice-prod.sbs.nhs.uk:8179/invoicepdf/90878ecf-4f08-5f91-b39c-8bd78b7f5d07,S9 2TJ
Department of Health,NHS Sheffield CCG,4/30/2020,C&M-PMS Contract Value,PRC DELEGATED CO-COMMISSIONING,BIRLEY HEALTH CENTRE,31798230,"64,197.92",PRC DELEGATED CO-COMMISSIONING,S12 3BP
Department of Health,NHS Sheffield CCG,4/30/2020,C&M-PMS PCN DES Participation,PRC DELEGATED CO-COMMISSIONING,BIRLEY HEALTH CENTRE,31798230,"1,209.32",PRC DELEGATED CO-COMMISSIONING,S12 3BP
Department of Health,NHS Sheffield CCG,4/30/2020,C&M-PMS Prem Notional Rent,PRC DELEGATED CO-COMMISSIONING,BIRLEY HEALTH CENTRE,31798230,"7,600.58",PRC DELEGATED CO-COMMISSIONING,S12 3BP
Department of Health,NHS Sheffield CCG,4/30/2020,C&M-GMS GP Training Costs,LOCAL ENHANCED SERVICES,BLUE STREAM ACADEMY,31860392,"40,000.00",LOCAL ENHANCED SERVICES,DE56 0RN
Department of Health,NHS Sheffield CCG,4/30/2020,Clinical&Medical-Voluntary Sector,PALLIATIVE CARE,BLUEBELL WOOD CHILDRENS HOSPICE,31820430,"46,000.00",PALLIATIVE CARE,S25 4AJ
Department of Health,NHS Sheffield CCG,4/30/2020,Cont Care-Funded Nursing Care Allow,FUNDED NURSING CARE,BONDCARE,31992367,"30,297.35",FNCSCHEDULEAPRIL,NW4 4EF
Department of Health,NHS Sheffield CCG,4/30/2020,Cont Care-Physical Disab (<65),CHC ADULT FULLY FUNDED,BONDCARE,32003647,"32,174.04",CHC SCHEDULE APRIL2020,NW4 4EF
Department of Health,NHS Sheffield CCG,4/30/2020,C&M-GMS Cost of Drugs -Prescribing,LOCAL ENHANCED SERVICES,BROOMHILL SURGERY,32047311,"5,195.56",LOCAL ENHANCED SERVICES,S10 5BU
Department of Health,NHS Sheffield CCG,4/30/2020,C&M-GMS Global Sum,PRC DELEGATED CO-COMMISSIONING,BROOMHILL SURGERY,32047311,"67,364.54",PRC DELEGATED CO-COMMISSIONING,S10 5BU
Department of Health,NHS Sheffield CCG,4/30/2020,C&M-GMS PCN DES Participation,PRC DELEGATED CO-COMMISSIONING,BROOMHILL SURGERY,32047311,"1,318.50",PRC DELEGATED CO-COMMISSIONING,S10 5BU
Department of Health,NHS Sheffield CCG,4/30/2020,C&M-GMS Prem Cost Rent,PRC DELEGATED CO-COMMISSIONING,BROOMHILL SURGERY,32047311,"2,975.42",PRC DELEGATED CO-COMMISSIONING,S10 5BU
Department of Health,NHS Sheffield CCG,4/30/2020,C&M-GMS Prem Notional Rent,PRC DELEGATED CO-COMMISSIONING,BROOMHILL SURGERY,32047311,"2,612.50",PRC DELEGATED CO-COMMISSIONING,S10 5BU
Department of Health,NHS Sheffield CCG,4/30/2020,C&M-GMS Prof Fees Prescribing,PRC DELEGATED CO-COMMISSIONING,BROOMHILL SURGERY,32047311,448.98,PRC DELEGATED CO-COMMISSIONING,S10 5BU
Department of Health,NHS Sheffield CCG,4/30/2020,C&M-GMS QOF Aspiration,PRC DELEGATED CO-COMMISSIONING,BROOMHILL SURGERY,32047311,"6,211.39",PRC DELEGATED CO-COMMISSIONING,S10 5BU
Department of Health,NHS Sheffield CCG,4/30/2020,C&M-GMS Global Sum,PRC DELEGATED CO-COMMISSIONING,BUCHANAN ROAD SURGERY,32047307,"37,057.14",PRC DELEGATED CO-COMMISSIONING,S5 8AL
Department of Health,NHS Sheffield CCG,4/30/2020,C&M-GMS PCN DES Participation,PRC DELEGATED CO-COMMISSIONING,BUCHANAN ROAD SURGERY,32047307,736.41,PRC DELEGATED CO-COMMISSIONING,S5 8AL
Department of Health,NHS Sheffield CCG,4/30/2020,C&M-GMS Prem Notional Rent,PRC DELEGATED CO-COMMISSIONING,BUCHANAN ROAD SURGERY,32047307,"2,595.83",PRC DELEGATED CO-COMMISSIONING,S5 8AL
Department of Health,NHS Sheffield CCG,4/30/2020,C&M-GMS QOF Aspiration,PRC DELEGATED CO-COMMISSIONING,BUCHANAN ROAD SURGERY,32047307,"4,303.24",PRC DELEGATED CO-COMMISSIONING,S5 8AL
Department of Health,NHS Sheffield CCG,4/30/2020,C&M-PMS Contract Value,PRC DELEGATED CO-COMMISSIONING,BURNCROSS SURGERY,31798232,"120,455.25",PRC DELEGATED CO-COMMISSIONING,S35 1RN
Department of Health,NHS Sheffield CCG,4/30/2020,C&M-PMS PCN DES Participation,PRC DELEGATED CO-COMMISSIONING,BURNCROSS SURGERY,31798232,"2,292.15",PRC DELEGATED CO-COMMISSIONING,S35 1RN
Department of Health,NHS Sheffield CCG,4/30/2020,C&M-PMS Prem Notional Rent,PRC DELEGATED CO-COMMISSIONING,BURNCROSS SURGERY,31798232,"14,058.33",PRC DELEGATED CO-COMMISSIONING,S35 1RN
Department of Health,NHS Sheffield CCG,4/30/2020,C&M-PMS Contract Value,PRC DELEGATED CO-COMMISSIONING,BURNGREAVE SURGERY,31798234,"57,368.92",PRC DELEGATED CO-COMMISSIONING,S3 9DA
Department of Health,NHS Sheffield CCG,4/30/2020,C&M-PMS PCN DES Participation,PRC DELEGATED CO-COMMISSIONING,BURNGREAVE SURGERY,31798234,"1,088.98",PRC DELEGATED CO-COMMISSIONING,S3 9DA
Department of Health,NHS Sheffield CCG,4/30/2020,C&M-PMS Prem Notional Rent,PRC DELEGATED CO-COMMISSIONING,BURNGREAVE SURGERY,31798234,"6,622.92",PRC DELEGATED CO-COMMISSIONING,S3 9DA
Department of Health,NHS Sheffield CCG,4/30/2020,C&M-GMS Cost of Drugs -Prescribing,LOCAL ENHANCED SERVICES,CARTERKNOWLE & DORE MEDICAL PRACTICE,32070253,"2,261.20",LOCAL ENHANCED SERVICES,S7 2DW
Department of Health,NHS Sheffield CCG,4/30/2020,C&M-GMS Global Sum,PRC DELEGATED CO-COMMISSIONING,CARTERKNOWLE & DORE MEDICAL PRACTICE,32070253,"89,071.05",PRC DELEGATED CO-COMMISSIONING,S7 2DW
Department of Health,NHS Sheffield CCG,4/30/2020,C&M-GMS PCN DES Participation,PRC DELEGATED CO-COMMISSIONING,CARTERKNOWLE & DORE MEDICAL PRACTICE,32070253,"1,742.96",PRC DELEGATED CO-COMMISSIONING,S7 2DW
Department of Health,NHS Sheffield CCG,4/30/2020,C&M-GMS PCO Locum Sickness,PRC DELEGATED CO-COMMISSIONING,CARTERKNOWLE & DORE MEDICAL PRACTICE,32070253,"10,050.00",PRC DELEGATED CO-COMMISSIONING,S7 2DW
Department of Health,NHS Sheffield CCG,4/30/2020,C&M-GMS Prem Notional Rent,PRC DELEGATED CO-COMMISSIONING,CARTERKNOWLE & DORE MEDICAL PRACTICE,32070253,"7,596.50",PRC DELEGATED CO-COMMISSIONING,S7 2DW
Department of Health,NHS Sheffield CCG,4/30/2020,C&M-GMS Prof Fees Prescribing,PRC DELEGATED CO-COMMISSIONING,CARTERKNOWLE & DORE MEDICAL PRACTICE,32070253,190.35,PRC DELEGATED CO-COMMISSIONING,S7 2DW
Department of Health,NHS Sheffield CCG,4/30/2020,C&M-GMS QOF Aspiration,PRC DELEGATED CO-COMMISSIONING,CARTERKNOWLE & DORE MEDICAL PRACTICE,32070253,"10,055.02",PRC DELEGATED CO-COMMISSIONING,S7 2DW
Department of Health,NHS Sheffield CCG,4/30/2020,C&M-GMS Cost of Drugs -Prescribing,LOCAL ENHANCED SERVICES,CHARNOCK HEALTH PRIMARY CARE CENTRE,32047313,"1,524.09",LOCAL ENHANCED SERVICES,S12 3GH
Department of Health,NHS Sheffield CCG,4/30/2020,C&M-GMS Global Sum,PRC DELEGATED CO-COMMISSIONING,CHARNOCK HEALTH PRIMARY CARE CENTRE,32047313,"45,132.16",PRC DELEGATED CO-COMMISSIONING,S12 3GH
Department of Health,NHS Sheffield CCG,4/30/2020,C&M-GMS PCN DES Participation,PRC DELEGATED CO-COMMISSIONING,CHARNOCK HEALTH PRIMARY CARE CENTRE,32047313,869.33,PRC DELEGATED CO-COMMISSIONING,S12 3GH
Department of Health,NHS Sheffield CCG,4/30/2020,C&M-GMS Prem Actual Rent,PRC DELEGATED CO-COMMISSIONING,CHARNOCK HEALTH PRIMARY CARE CENTRE,32047313,"20,100.00",PRC DELEGATED CO-COMMISSIONING,S12 3GH
Department of Health,NHS Sheffield CCG,4/30/2020,C&M-GMS Prem Notional Rent,PRC DELEGATED CO-COMMISSIONING,CHARNOCK HEALTH PRIMARY CARE CENTRE,32047313,335.00,PRC DELEGATED CO-COMMISSIONING,S12 3GH
Department of Health,NHS Sheffield CCG,4/30/2020,C&M-GMS Prem Rates,PRC DELEGATED CO-COMMISSIONING,CHARNOCK HEALTH PRIMARY CARE CENTRE,32047313,"1,570.50",PRC DELEGATED CO-COMMISSIONING,S12 3GH
Department of Health,NHS Sheffield CCG,4/30/2020,C&M-GMS Prem Water Rates,PRC DELEGATED CO-COMMISSIONING,CHARNOCK HEALTH PRIMARY CARE CENTRE,32047313,350.21,PRC DELEGATED CO-COMMISSIONING,S12 3GH
Department of Health,NHS Sheffield CCG,4/30/2020,C&M-GMS Prof Fees Prescribing,PRC DELEGATED CO-COMMISSIONING,CHARNOCK HEALTH PRIMARY CARE CENTRE,32047313,213.11,PRC DELEGATED CO-COMMISSIONING,S12 3GH
Department of Health,NHS Sheffield CCG,4/30/2020,C&M-GMS QOF Aspiration,PRC DELEGATED CO-COMMISSIONING,CHARNOCK HEALTH PRIMARY CARE CENTRE,32047313,"4,932.79",PRC DELEGATED CO-COMMISSIONING,S12 3GH
Department of Health,NHS Sheffield CCG,4/30/2020,Hcare Srv Rec Fdtn Trust-Contract Baseline,ACUTE COMMISSIONING,CHESTERFIELD ROYAL HOSPITAL NHS FOUNDATION TRUST,31848488,"369,177.00",ACUTE COMMISSIONING,S44 5BL
Department of Health,NHS Sheffield CCG,4/30/2020,Hcare Srv Rec Fdtn Trust-Contract Baseline,ACUTE COMMISSIONING,CHESTERFIELD ROYAL HOSPITAL NHS FOUNDATION TRUST,31860389,"32,607.00",ACUTE COMMISSIONING,S44 5BL
Department of Health,NHS Sheffield CCG,4/30/2020,External Consultancy Fees,BEREAVEMENT SERVICE,CIVICA UK LTD,31767423,"45,225.00","Recruitment and printing costs of 3,000 members for South Yorkshire and Bassetlaw Integrated Care System supplied by Demetri Vlachos, Civica Engagement Solutions",DY1 4TD
Department of Health,NHS Sheffield CCG,4/30/2020,External Consultancy Fees,BEREAVEMENT SERVICE,CIVICA UK LTD,31767423,"9,045.00",BEREAVEMENT SERVICE,DY1 4TD
Department of Health,NHS Sheffield CCG,4/30/2020,C&M-APMS Contract Value,PRC DELEGATED CO-COMMISSIONING,CLOVER CITY PRACTICE,31798302,"29,038.75",PRC DELEGATED CO-COMMISSIONING,S9 4QH
Department of Health,NHS Sheffield CCG,4/30/2020,C&M-APMS PCN DES Participation,PRC DELEGATED CO-COMMISSIONING,CLOVER CITY PRACTICE,31798302,529.90,PRC DELEGATED CO-COMMISSIONING,S9 4QH
Department of Health,NHS Sheffield CCG,4/30/2020,C&M-APMS LES Translation Fees,LOCAL ENHANCED SERVICES,CLOVER GROUP PRACTICE,31732740,"65,500.00",MULBERRYQ4 201920,S9 4QH
Department of Health,NHS Sheffield CCG,4/30/2020,C&M-APMS Contract Value,PRC DELEGATED CO-COMMISSIONING,CLOVER GROUP PRACTICE,31798236,"127,626.67",PRC DELEGATED CO-COMMISSIONING,S9 4QH
Department of Health,NHS Sheffield CCG,4/30/2020,C&M-APMS PCN DES Participation,PRC DELEGATED CO-COMMISSIONING,CLOVER GROUP PRACTICE,31798236,"2,421.56",PRC DELEGATED CO-COMMISSIONING,S9 4QH
Department of Health,NHS Sheffield CCG,4/30/2020,C&M-APMS PCO Locum Adop/Pat/Mat,PRC DELEGATED CO-COMMISSIONING,CLOVER GROUP PRACTICE,31798236,"11,357.60",PRC DELEGATED CO-COMMISSIONING,S9 4QH
Department of Health,NHS Sheffield CCG,4/30/2020,C&M-APMS Prem Actual Rent,PRC DELEGATED CO-COMMISSIONING,CLOVER GROUP PRACTICE,31798236,"5,169.68",PRC DELEGATED CO-COMMISSIONING,S9 4QH
Department of Health,NHS Sheffield CCG,4/30/2020,C&M-APMS Prem Healthcentre Rent,PRC DELEGATED CO-COMMISSIONING,CLOVER GROUP PRACTICE,31798236,"58,714.62",PRC DELEGATED CO-COMMISSIONING,S9 4QH
Department of Health,NHS Sheffield CCG,4/30/2020,C&M-APMS Prem Notional Rent,PRC DELEGATED CO-COMMISSIONING,CLOVER GROUP PRACTICE,31798236,"2,804.17",PRC DELEGATED CO-COMMISSIONING,S9 4QH
Department of Health,NHS Sheffield CCG,4/30/2020,Computer Software/License,PROCUREMENT,COMMERCE DECISIONS LTD,32014584,"54,525.63",AWARD Licences (51) valid 31/03/20 to 30/03/21,OX14 4RY
Department of Health,NHS Sheffield CCG,4/30/2020,C&M-GMS Prem Healthcentre Rent,PRC DELEGATED CO-COMMISSIONING,COMMUNITY HEALTH PARTNERSHIPS LTD,31775993,"43,200.00",PRC DELEGATED CO-COMMISSIONING,M1 3LD
Department of Health,NHS Sheffield CCG,4/30/2020,C&M-GMS Cost of Drugs -Prescribing,LOCAL ENHANCED SERVICES,CROOKES PRACTICE,32047321,"1,170.91",LOCAL ENHANCED SERVICES,S10 1GN
Department of Health,NHS Sheffield CCG,4/30/2020,C&M-GMS Global Sum,PRC DELEGATED CO-COMMISSIONING,CROOKES PRACTICE,32047321,"54,938.27",PRC DELEGATED CO-COMMISSIONING,S10 1GN
Department of Health,NHS Sheffield CCG,4/30/2020,C&M-GMS PCN DES Participation,PRC DELEGATED CO-COMMISSIONING,CROOKES PRACTICE,32047321,"1,040.55",PRC DELEGATED CO-COMMISSIONING,S10 1GN
Department of Health,NHS Sheffield CCG,4/30/2020,C&M-GMS Prem Notional Rent,PRC DELEGATED CO-COMMISSIONING,CROOKES PRACTICE,32047321,"3,874.67",PRC DELEGATED CO-COMMISSIONING,S10 1GN
Department of Health,NHS Sheffield CCG,4/30/2020,C&M-GMS Prem Rates,PRC DELEGATED CO-COMMISSIONING,CROOKES PRACTICE,32047321,"1,538.25",PRC DELEGATED CO-COMMISSIONING,S10 1GN
Department of Health,NHS Sheffield CCG,4/30/2020,C&M-GMS Prof Fees Prescribing,PRC DELEGATED CO-COMMISSIONING,CROOKES PRACTICE,32047321,206.90,PRC DELEGATED CO-COMMISSIONING,S10 1GN
Department of Health,NHS Sheffield CCG,4/30/2020,C&M-GMS QOF Aspiration,PRC DELEGATED CO-COMMISSIONING,CROOKES PRACTICE,32047321,"4,885.77",PRC DELEGATED CO-COMMISSIONING,S10 1GN
Department of Health,NHS Sheffield CCG,4/30/2020,C&M-PMS Contract Value,PRC DELEGATED CO-COMMISSIONING,DEEPCAR MEDICAL CENTRE,31798238,"41,477.33",PRC DELEGATED CO-COMMISSIONING,S36 2RA
Department of Health,NHS Sheffield CCG,4/30/2020,C&M-PMS PCN DES Participation,PRC DELEGATED CO-COMMISSIONING,DEEPCAR MEDICAL CENTRE,31798238,789.85,PRC DELEGATED CO-COMMISSIONING,S36 2RA
Department of Health,NHS Sheffield CCG,4/30/2020,C&M-PMS Prem Healthcentre Rent,PRC DELEGATED CO-COMMISSIONING,DEEPCAR MEDICAL CENTRE,31798238,"29,915.44",PRC DELEGATED CO-COMMISSIONING,S36 2RA
Department of Health,NHS Sheffield CCG,4/30/2020,Computer Hardware Purch,EMERGENCY PLANNING,DELL CORPORATION LTD,32129772,"29,950.00",300 x Latitude Bundle SKU as per quote no 105369564 from Matt Wall,RG12 1LF
Department of Health,NHS Sheffield CCG,4/30/2020,Computer Hardware Purch,EMERGENCY PLANNING,DELL CORPORATION LTD,32129772,"5,990.00",http://nww.docserv.wyss.nhs.uk/synergyiim/dist/?val=1791717_11773637_20200427142601,RG12 1LF
Department of Health,NHS Sheffield CCG,4/30/2020,Computer Hardware Purch,EMERGENCY PLANNING,DELL CORPORATION LTD,32129774,"29,950.00",300 x Latitude Bundle SKU as per quote no 105369564 from Matt Wall,RG12 1LF
Department of Health,NHS Sheffield CCG,4/30/2020,Computer Hardware Purch,EMERGENCY PLANNING,DELL CORPORATION LTD,32129774,"5,990.00",http://nww.docserv.wyss.nhs.uk/synergyiim/dist/?val=1791778_11773749_20200427144145,RG12 1LF
Department of Health,NHS Sheffield CCG,4/30/2020,Computer Hardware Purch,EMERGENCY PLANNING,DELL CORPORATION LTD,32145975,"29,950.00",300 x Latitude Bundle SKU as per quote no 105369564 from Matt Wall,RG12 1LF
Department of Health,NHS Sheffield CCG,4/30/2020,Computer Hardware Purch,EMERGENCY PLANNING,DELL CORPORATION LTD,32145975,"5,990.00",http://nww.docserv.wyss.nhs.uk/synergyiim/dist/?val=1791415_11771404_20200427125025,RG12 1LF
Department of Health,NHS Sheffield CCG,4/30/2020,Computer Hardware Purch,EMERGENCY PLANNING,DELL CORPORATION LTD,32145976,"29,950.00",300 x Latitude Bundle SKU as per quote no 105369564 from Matt Wall,RG12 1LF
Department of Health,NHS Sheffield CCG,4/30/2020,Computer Hardware Purch,EMERGENCY PLANNING,DELL CORPORATION LTD,32145976,"5,990.00",http://nww.docserv.wyss.nhs.uk/synergyiim/dist/?val=1792558_11777995_20200427154031,RG12 1LF
Department of Health,NHS Sheffield CCG,4/30/2020,Computer Hardware Purch,EMERGENCY PLANNING,DELL CORPORATION LTD,32145977,"29,950.00",300 x Latitude Bundle SKU as per quote no 105369564 from Matt Wall,RG12 1LF
Department of Health,NHS Sheffield CCG,4/30/2020,Computer Hardware Purch,EMERGENCY PLANNING,DELL CORPORATION LTD,32145977,"5,990.00",http://nww.docserv.wyss.nhs.uk/synergyiim/dist/?val=1791533_11772583_20200427131300,RG12 1LF
Department of Health,NHS Sheffield CCG,4/30/2020,C&M-GMS Global Sum,PRC DELEGATED CO-COMMISSIONING,DEVONSHIRE GREEN MEDICAL CENTRE,32047323,"48,953.56",PRC DELEGATED CO-COMMISSIONING,S3 7SF
Department of Health,NHS Sheffield CCG,4/30/2020,C&M-GMS PCN DES Participation,PRC DELEGATED CO-COMMISSIONING,DEVONSHIRE GREEN MEDICAL CENTRE,32047323,931.75,PRC DELEGATED CO-COMMISSIONING,S3 7SF
Department of Health,NHS Sheffield CCG,4/30/2020,C&M-GMS Prem Notional Rent,PRC DELEGATED CO-COMMISSIONING,DEVONSHIRE GREEN MEDICAL CENTRE,32047323,"5,987.50",PRC DELEGATED CO-COMMISSIONING,S3 7SF
Department of Health,NHS Sheffield CCG,4/30/2020,C&M-GMS QOF Aspiration,PRC DELEGATED CO-COMMISSIONING,DEVONSHIRE GREEN MEDICAL CENTRE,32047323,"4,805.68",PRC DELEGATED CO-COMMISSIONING,S3 7SF
Department of Health,NHS Sheffield CCG,4/30/2020,Clinical&Medical-Serv Recd-F Trsts,CLINICAL LEADS,DONCASTER AND BASSETLAW HOSPITALS NHS FOUNDATION TRUST,31820384,"140,000.00",MACMILLAN CANCER SUPPORT RECHARGES,WF3 1WE
Department of Health,NHS Sheffield CCG,4/30/2020,Clinical&Medical-Serv Recd-F Trsts,CLINICAL LEADS,DONCASTER AND BASSETLAW HOSPITALS NHS FOUNDATION TRUST,31820422,"-95,000.00",PART CANCEL AGAINST INVOICE 56407290,WF3 1WE
Department of Health,NHS Sheffield CCG,4/30/2020,Hcare Srv Rec Fdtn Trust-Contract Baseline,ACUTE COMMISSIONING,DONCASTER AND BASSETLAW HOSPITALS NHS FOUNDATION TRUST,31848489,"79,729.44",ACUTE COMMISSIONING,WF3 1WE
Department of Health,NHS Sheffield CCG,4/30/2020,Oth Travel Costs-Car Mileage,BEREAVEMENT SERVICE,DONCASTER AND BASSETLAW HOSPITALS NHS FOUNDATION TRUST,32154038,222.00,BEREAVEMENT SERVICE,WF3 1WE
Department of Health,NHS Sheffield CCG,4/30/2020,Other Travel Costs - Car Parking,BEREAVEMENT SERVICE,DONCASTER AND BASSETLAW HOSPITALS NHS FOUNDATION TRUST,32154038,18.00,BEREAVEMENT SERVICE,WF3 1WE
Department of Health,NHS Sheffield CCG,4/30/2020,Seconded-Basic Sal-Staff fm oth org,BEREAVEMENT SERVICE,DONCASTER AND BASSETLAW HOSPITALS NHS FOUNDATION TRUST,32154038,"24,093.00",SALARY NHS RECHARGES FOR,WF3 1WE
Department of Health,NHS Sheffield CCG,4/30/2020,Seconded-Employer's NHI Costs,BEREAVEMENT SERVICE,DONCASTER AND BASSETLAW HOSPITALS NHS FOUNDATION TRUST,32154038,"2,965.00",BEREAVEMENT SERVICE,WF3 1WE
Department of Health,NHS Sheffield CCG,4/30/2020,Oth Travel Costs-Car Mileage,BEREAVEMENT SERVICE,DONCASTER AND BASSETLAW HOSPITALS NHS FOUNDATION TRUST,32154106,-222.00,BEREAVEMENT SERVICE,WF3 1WE
Department of Health,NHS Sheffield CCG,4/30/2020,Other Travel Costs - Car Parking,BEREAVEMENT SERVICE,DONCASTER AND BASSETLAW HOSPITALS NHS FOUNDATION TRUST,32154106,-18.00,SALARY NHS RECHARGES FOR,WF3 1WE
Department of Health,NHS Sheffield CCG,4/30/2020,Seconded-Basic Sal-Staff fm oth org,BEREAVEMENT SERVICE,DONCASTER AND BASSETLAW HOSPITALS NHS FOUNDATION TRUST,32154106,"-24,093.00",BEREAVEMENT SERVICE,WF3 1WE
Department of Health,NHS Sheffield CCG,4/30/2020,Seconded-Employer's NHI Costs,BEREAVEMENT SERVICE,DONCASTER AND BASSETLAW HOSPITALS NHS FOUNDATION TRUST,32154106,"-2,965.00",BEREAVEMENT SERVICE,WF3 1WE
Department of Health,NHS Sheffield CCG,4/30/2020,C&M-PMS Contract Value,PRC DELEGATED CO-COMMISSIONING,DOVERCOURT SURGERY,31798240,"73,656.67",PRC DELEGATED CO-COMMISSIONING,S2 5FX
Department of Health,NHS Sheffield CCG,4/30/2020,C&M-PMS PCN DES Participation,PRC DELEGATED CO-COMMISSIONING,DOVERCOURT SURGERY,31798240,"1,392.36",PRC DELEGATED CO-COMMISSIONING,S2 5FX
Department of Health,NHS Sheffield CCG,4/30/2020,C&M-PMS PCO Locum Sickness,PRC DELEGATED CO-COMMISSIONING,DOVERCOURT SURGERY,31798240,"6,656.04",PRC DELEGATED CO-COMMISSIONING,S2 5FX
Department of Health,NHS Sheffield CCG,4/30/2020,C&M-PMS Prem Actual Rent,PRC DELEGATED CO-COMMISSIONING,DOVERCOURT SURGERY,31798240,"12,400.00",PRC DELEGATED CO-COMMISSIONING,S2 5FX
Department of Health,NHS Sheffield CCG,4/30/2020,C&M-PMS Prem Notional Rent,PRC DELEGATED CO-COMMISSIONING,DOVERCOURT SURGERY,31798240,"1,708.33",PRC DELEGATED CO-COMMISSIONING,S2 5FX
Department of Health,NHS Sheffield CCG,4/30/2020,C&M-PMS Prem Rates,PRC DELEGATED CO-COMMISSIONING,DOVERCOURT SURGERY,31798240,"24,575.75",PRC DELEGATED CO-COMMISSIONING,S2 5FX
Department of Health,NHS Sheffield CCG,4/30/2020,C&M-PMS Contract Value,PRC DELEGATED CO-COMMISSIONING,DR MEHROTRA & PARTNER,31798242,"24,875.33",PRC DELEGATED CO-COMMISSIONING,S9 5DH
Department of Health,NHS Sheffield CCG,4/30/2020,C&M-PMS PCN DES Participation,PRC DELEGATED CO-COMMISSIONING,DR MEHROTRA & PARTNER,31798242,501.42,PRC DELEGATED CO-COMMISSIONING,S9 5DH
Department of Health,NHS Sheffield CCG,4/30/2020,C&M-PMS Prem Notional Rent,PRC DELEGATED CO-COMMISSIONING,DR MEHROTRA & PARTNER,31798242,"5,157.29",PRC DELEGATED CO-COMMISSIONING,S9 5DH
Department of Health,NHS Sheffield CCG,4/30/2020,C&M-PMS Contract Value,PRC DELEGATED CO-COMMISSIONING,DR MILNER & PARTNERS,31798244,"76,289.75",PRC DELEGATED CO-COMMISSIONING,S6 4JQ
Department of Health,NHS Sheffield CCG,4/30/2020,C&M-PMS PCN DES Participation,PRC DELEGATED CO-COMMISSIONING,DR MILNER & PARTNERS,31798244,"1,435.93",PRC DELEGATED CO-COMMISSIONING,S6 4JQ
Department of Health,NHS Sheffield CCG,4/30/2020,C&M-PMS PCO Locum Sickness,PRC DELEGATED CO-COMMISSIONING,DR MILNER & PARTNERS,31798244,"12,235.74",PRC DELEGATED CO-COMMISSIONING,S6 4JQ
Department of Health,NHS Sheffield CCG,4/30/2020,C&M-PMS Prem Actual Rent,PRC DELEGATED CO-COMMISSIONING,DR MILNER & PARTNERS,31798244,"11,382.00",PRC DELEGATED CO-COMMISSIONING,S6 4JQ
Department of Health,NHS Sheffield CCG,4/30/2020,C&M-PMS Prem Notional Rent,PRC DELEGATED CO-COMMISSIONING,DR MILNER & PARTNERS,31798244,"4,462.42",PRC DELEGATED CO-COMMISSIONING,S6 4JQ
Department of Health,NHS Sheffield CCG,4/30/2020,C&M-PMS Prem Rates,PRC DELEGATED CO-COMMISSIONING,DR MILNER & PARTNERS,31798244,"2,757.50",PRC DELEGATED CO-COMMISSIONING,S6 4JQ
Department of Health,NHS Sheffield CCG,4/30/2020,C&M-PMS Prem Water Rates,PRC DELEGATED CO-COMMISSIONING,DR MILNER & PARTNERS,31798244,175.91,PRC DELEGATED CO-COMMISSIONING,S6 4JQ
Department of Health,NHS Sheffield CCG,4/30/2020,C&M-GMS Cost of Drugs -Prescribing,LOCAL ENHANCED SERVICES,DUKE MEDICAL CENTRE,32047330,"1,836.99",LOCAL ENHANCED SERVICES,S2 2TD
Department of Health,NHS Sheffield CCG,4/30/2020,C&M-GMS Global Sum,PRC DELEGATED CO-COMMISSIONING,DUKE MEDICAL CENTRE,32047330,"61,537.16",PRC DELEGATED CO-COMMISSIONING,S2 2TD
Department of Health,NHS Sheffield CCG,4/30/2020,C&M-GMS PCN DES Participation,PRC DELEGATED CO-COMMISSIONING,DUKE MEDICAL CENTRE,32047330,"1,138.79",PRC DELEGATED CO-COMMISSIONING,S2 2TD
Department of Health,NHS Sheffield CCG,4/30/2020,C&M-GMS Prem Notional Rent,PRC DELEGATED CO-COMMISSIONING,DUKE MEDICAL CENTRE,32047330,"5,721.67",PRC DELEGATED CO-COMMISSIONING,S2 2TD
Department of Health,NHS Sheffield CCG,4/30/2020,C&M-GMS Prof Fees Prescribing,PRC DELEGATED CO-COMMISSIONING,DUKE MEDICAL CENTRE,32047330,227.59,PRC DELEGATED CO-COMMISSIONING,S2 2TD
Department of Health,NHS Sheffield CCG,4/30/2020,C&M-GMS QOF Aspiration,PRC DELEGATED CO-COMMISSIONING,DUKE MEDICAL CENTRE,32047330,"5,166.69",PRC DELEGATED CO-COMMISSIONING,S2 2TD
Department of Health,NHS Sheffield CCG,4/30/2020,C&M-PMS GP Statutory Levy,PRC DELEGATED CO-COMMISSIONING,DYKES HALL MEDICAL CENTRE,31798247,-335.34,PRC DELEGATED CO-COMMISSIONING,S6 4GQ
Department of Health,NHS Sheffield CCG,4/30/2020,C&M-PMS Out of Hours Opt Outs,PRC DELEGATED CO-COMMISSIONING,DYKES HALL MEDICAL CENTRE,31798247,"-3,332.00",PRC DELEGATED CO-COMMISSIONING,S6 4GQ
Department of Health,NHS Sheffield CCG,4/30/2020,C&M-PMS Contract Value,PRC DELEGATED CO-COMMISSIONING,DYKES HALL MEDICAL CENTRE,31798248,"71,375.17",PRC DELEGATED CO-COMMISSIONING,S6 4GQ
Department of Health,NHS Sheffield CCG,4/30/2020,C&M-PMS DES Extended Hours Access,PRC DELEGATED CO-COMMISSIONING,DYKES HALL MEDICAL CENTRE,31798248,"4,338.04",PRC DELEGATED CO-COMMISSIONING,S6 4GQ
Department of Health,NHS Sheffield CCG,4/30/2020,C&M-PMS PCN DES Clinical Director,PRC DELEGATED CO-COMMISSIONING,DYKES HALL MEDICAL CENTRE,31798248,"2,160.04",PRC DELEGATED CO-COMMISSIONING,S6 4GQ
Department of Health,NHS Sheffield CCG,4/30/2020,C&M-PMS PCN DES PCN support,LOCAL ENHANCED SERVICES,DYKES HALL MEDICAL CENTRE,31798248,"4,487.63",LOCAL ENHANCED SERVICES,S6 4GQ
Department of Health,NHS Sheffield CCG,4/30/2020,C&M-PMS PCN DES Participation,PRC DELEGATED CO-COMMISSIONING,DYKES HALL MEDICAL CENTRE,31798248,"1,386.86",PRC DELEGATED CO-COMMISSIONING,S6 4GQ
Department of Health,NHS Sheffield CCG,4/30/2020,C&M-PMS Prem Notional Rent,PRC DELEGATED CO-COMMISSIONING,DYKES HALL MEDICAL CENTRE,31798248,"5,377.08",PRC DELEGATED CO-COMMISSIONING,S6 4GQ
Department of Health,NHS Sheffield CCG,4/30/2020,C&M-PMS Prem Rates,PRC DELEGATED CO-COMMISSIONING,DYKES HALL MEDICAL CENTRE,31798248,"1,365.00",PRC DELEGATED CO-COMMISSIONING,S6 4GQ
Department of Health,NHS Sheffield CCG,4/30/2020,C&M-PMS Prem Water Rates,PRC DELEGATED CO-COMMISSIONING,DYKES HALL MEDICAL CENTRE,31798248,166.52,PRC DELEGATED CO-COMMISSIONING,S6 4GQ
Department of Health,NHS Sheffield CCG,4/30/2020,C&M-PMS Contract Value,PRC DELEGATED CO-COMMISSIONING,EAST BANK MEDICAL CENTRE,31798250,"49,109.33",PRC DELEGATED CO-COMMISSIONING,S2 2AG
Department of Health,NHS Sheffield CCG,4/30/2020,C&M-PMS PCN DES Participation,PRC DELEGATED CO-COMMISSIONING,EAST BANK MEDICAL CENTRE,31798250,914.08,PRC DELEGATED CO-COMMISSIONING,S2 2AG
Department of Health,NHS Sheffield CCG,4/30/2020,C&M-PMS Prem Notional Rent,PRC DELEGATED CO-COMMISSIONING,EAST BANK MEDICAL CENTRE,31798250,"10,583.33",PRC DELEGATED CO-COMMISSIONING,S2 2AG
Department of Health,NHS Sheffield CCG,4/30/2020,C&M-GMS Cost of Drugs -Prescribing,LOCAL ENHANCED SERVICES,ECCLESFIELD GROUP PRACTICE,32070255,"2,585.59",LOCAL ENHANCED SERVICES,S35 9XQ
Department of Health,NHS Sheffield CCG,4/30/2020,C&M-GMS DES Extended Hours Access,PRC DELEGATED CO-COMMISSIONING,ECCLESFIELD GROUP PRACTICE,32070255,"5,160.79",PRC DELEGATED CO-COMMISSIONING,S35 9XQ
Department of Health,NHS Sheffield CCG,4/30/2020,C&M-GMS Global Sum,PRC DELEGATED CO-COMMISSIONING,ECCLESFIELD GROUP PRACTICE,32070255,"73,114.58",PRC DELEGATED CO-COMMISSIONING,S35 9XQ
Department of Health,NHS Sheffield CCG,4/30/2020,C&M-GMS PCN DES Invest & impact,PRC DELEGATED CO-COMMISSIONING,ECCLESFIELD GROUP PRACTICE,32070255,"2,071.64",PRC DELEGATED CO-COMMISSIONING,S35 9XQ
Department of Health,NHS Sheffield CCG,4/30/2020,C&M-GMS PCN DES Clinical Director,PRC DELEGATED CO-COMMISSIONING,ECCLESFIELD GROUP PRACTICE,32070255,"2,569.72",PRC DELEGATED CO-COMMISSIONING,S35 9XQ
Department of Health,NHS Sheffield CCG,4/30/2020,C&M-GMS PCN DES PCN support,LOCAL ENHANCED SERVICES,ECCLESFIELD GROUP PRACTICE,32070255,"5,338.75",LOCAL ENHANCED SERVICES,S35 9XQ
Department of Health,NHS Sheffield CCG,4/30/2020,C&M-GMS PCN DES Participation,PRC DELEGATED CO-COMMISSIONING,ECCLESFIELD GROUP PRACTICE,32070255,"1,400.97",PRC DELEGATED CO-COMMISSIONING,S35 9XQ
Department of Health,NHS Sheffield CCG,4/30/2020,C&M-GMS PCO Locum Sickness,PRC DELEGATED CO-COMMISSIONING,ECCLESFIELD GROUP PRACTICE,32070255,"5,729.12",PRC DELEGATED CO-COMMISSIONING,S35 9XQ
Department of Health,NHS Sheffield CCG,4/30/2020,C&M-GMS Prem Notional Rent,PRC DELEGATED CO-COMMISSIONING,ECCLESFIELD GROUP PRACTICE,32070255,"6,805.42",PRC DELEGATED CO-COMMISSIONING,S35 9XQ
Department of Health,NHS Sheffield CCG,4/30/2020,C&M-GMS Prem Rates,PRC DELEGATED CO-COMMISSIONING,ECCLESFIELD GROUP PRACTICE,32070255,549.88,PRC DELEGATED CO-COMMISSIONING,S35 9XQ
Department of Health,NHS Sheffield CCG,4/30/2020,C&M-GMS Prof Fees Prescribing,PRC DELEGATED CO-COMMISSIONING,ECCLESFIELD GROUP PRACTICE,32070255,246.22,PRC DELEGATED CO-COMMISSIONING,S35 9XQ
Department of Health,NHS Sheffield CCG,4/30/2020,C&M-GMS QOF Aspiration,PRC DELEGATED CO-COMMISSIONING,ECCLESFIELD GROUP PRACTICE,32070255,"9,179.49",PRC DELEGATED CO-COMMISSIONING,S35 9XQ
Department of Health,NHS Sheffield CCG,4/30/2020,C&M-GMS Cost of Drugs -Prescribing,LOCAL ENHANCED SERVICES,ELM LANE SURGERY,32047328,"1,625.60",LOCAL ENHANCED SERVICES,S5 7TW
Department of Health,NHS Sheffield CCG,4/30/2020,C&M-GMS Global Sum,PRC DELEGATED CO-COMMISSIONING,ELM LANE SURGERY,32047328,"42,904.58",PRC DELEGATED CO-COMMISSIONING,S5 7TW
Department of Health,NHS Sheffield CCG,4/30/2020,C&M-GMS PCN DES Participation,PRC DELEGATED CO-COMMISSIONING,ELM LANE SURGERY,32047328,821.44,PRC DELEGATED CO-COMMISSIONING,S5 7TW
Department of Health,NHS Sheffield CCG,4/30/2020,C&M-GMS Prem Notional Rent,PRC DELEGATED CO-COMMISSIONING,ELM LANE SURGERY,32047328,"5,343.00",PRC DELEGATED CO-COMMISSIONING,S5 7TW
Department of Health,NHS Sheffield CCG,4/30/2020,C&M-GMS Prof Fees Prescribing,PRC DELEGATED CO-COMMISSIONING,ELM LANE SURGERY,32047328,115.86,PRC DELEGATED CO-COMMISSIONING,S5 7TW
Department of Health,NHS Sheffield CCG,4/30/2020,C&M-GMS QOF Aspiration,PRC DELEGATED CO-COMMISSIONING,ELM LANE SURGERY,32047328,"4,720.25",PRC DELEGATED CO-COMMISSIONING,S5 7TW
Department of Health,NHS Sheffield CCG,4/30/2020,Cont Care-Physical Disab (<65),CHC ADULT FULLY FUNDED,FAIRWINDS HEALTH CARE LTD,32003462,"39,437.06",CHC SCHEDULE APRIL2020,S61 1AJ
Department of Health,NHS Sheffield CCG,4/30/2020,C&M-PMS Contract Value,PRC DELEGATED CO-COMMISSIONING,FALKLAND HOUSE,31798254,"25,997.42",PRC DELEGATED CO-COMMISSIONING,S11 7PL
Department of Health,NHS Sheffield CCG,4/30/2020,C&M-PMS PCN DES Participation,PRC DELEGATED CO-COMMISSIONING,FALKLAND HOUSE,31798254,495.54,PRC DELEGATED CO-COMMISSIONING,S11 7PL
Department of Health,NHS Sheffield CCG,4/30/2020,C&M-PMS Prem Notional Rent,PRC DELEGATED CO-COMMISSIONING,FALKLAND HOUSE,31798254,"1,866.67",PRC DELEGATED CO-COMMISSIONING,S11 7PL
Department of Health,NHS Sheffield CCG,4/30/2020,C&M-PMS Prem Water Rates,PRC DELEGATED CO-COMMISSIONING,FALKLAND HOUSE,31798254,79.40,PRC DELEGATED CO-COMMISSIONING,S11 7PL
Department of Health,NHS Sheffield CCG,4/30/2020,C&M-GMS Cost of Drugs -Prescribing,LOCAL ENHANCED SERVICES,FAR LANE MEDICAL CENTRE,32047337,254.78,LOCAL ENHANCED SERVICES,S6 4FA
Department of Health,NHS Sheffield CCG,4/30/2020,C&M-GMS Global Sum,PRC DELEGATED CO-COMMISSIONING,FAR LANE MEDICAL CENTRE,32047337,"57,482.02",PRC DELEGATED CO-COMMISSIONING,S6 4FA
Department of Health,NHS Sheffield CCG,4/30/2020,C&M-GMS PCN DES Participation,PRC DELEGATED CO-COMMISSIONING,FAR LANE MEDICAL CENTRE,32047337,"1,138.48",PRC DELEGATED CO-COMMISSIONING,S6 4FA
Department of Health,NHS Sheffield CCG,4/30/2020,C&M-GMS Prem Notional Rent,PRC DELEGATED CO-COMMISSIONING,FAR LANE MEDICAL CENTRE,32047337,"3,462.50",PRC DELEGATED CO-COMMISSIONING,S6 4FA
Department of Health,NHS Sheffield CCG,4/30/2020,C&M-GMS Prof Fees Prescribing,PRC DELEGATED CO-COMMISSIONING,FAR LANE MEDICAL CENTRE,32047337,45.52,PRC DELEGATED CO-COMMISSIONING,S6 4FA
Department of Health,NHS Sheffield CCG,4/30/2020,C&M-GMS QOF Aspiration,PRC DELEGATED CO-COMMISSIONING,FAR LANE MEDICAL CENTRE,32047337,"5,719.80",PRC DELEGATED CO-COMMISSIONING,S6 4FA
Department of Health,NHS Sheffield CCG,4/30/2020,C&M-PMS Contract Value,PRC DELEGATED CO-COMMISSIONING,FIRTH PARK SURGERY,31798252,"74,484.92",PRC DELEGATED CO-COMMISSIONING,S5 6HH
Department of Health,NHS Sheffield CCG,4/30/2020,C&M-PMS PCN DES Participation,PRC DELEGATED CO-COMMISSIONING,FIRTH PARK SURGERY,31798252,"1,468.51",PRC DELEGATED CO-COMMISSIONING,S5 6HH
Department of Health,NHS Sheffield CCG,4/30/2020,C&M-PMS PCO Locum Adop/Pat/Mat,PRC DELEGATED CO-COMMISSIONING,FIRTH PARK SURGERY,31798252,"4,504.49",PRC DELEGATED CO-COMMISSIONING,S5 6HH
Department of Health,NHS Sheffield CCG,4/30/2020,C&M-PMS Prem Notional Rent,PRC DELEGATED CO-COMMISSIONING,FIRTH PARK SURGERY,31798252,"4,500.00",PRC DELEGATED CO-COMMISSIONING,S5 6HH
Department of Health,NHS Sheffield CCG,4/30/2020,C&M-PMS Prem Water Rates,PRC DELEGATED CO-COMMISSIONING,FIRTH PARK SURGERY,31798252,294.63,PRC DELEGATED CO-COMMISSIONING,S5 6HH
Department of Health,NHS Sheffield CCG,4/30/2020,C&M-PMS Contract Value,PRC DELEGATED CO-COMMISSIONING,FORGE HEALTH GROUP,31798300,"119,112.67",PRC DELEGATED CO-COMMISSIONING,S3 9DL
Department of Health,NHS Sheffield CCG,4/30/2020,C&M-PMS DES Extended Hours Access,PRC DELEGATED CO-COMMISSIONING,FORGE HEALTH GROUP,31798300,"6,849.44",PRC DELEGATED CO-COMMISSIONING,S3 9DL
Department of Health,NHS Sheffield CCG,4/30/2020,C&M-PMS PCN DES Clinical Director,PRC DELEGATED CO-COMMISSIONING,FORGE HEALTH GROUP,31798300,"3,410.55",PRC DELEGATED CO-COMMISSIONING,S3 9DL
Department of Health,NHS Sheffield CCG,4/30/2020,C&M-PMS PCN DES PCN support,LOCAL ENHANCED SERVICES,FORGE HEALTH GROUP,31798300,"7,085.63",LOCAL ENHANCED SERVICES,S3 9DL
Department of Health,NHS Sheffield CCG,4/30/2020,C&M-PMS PCN DES Participation,PRC DELEGATED CO-COMMISSIONING,FORGE HEALTH GROUP,31798300,"2,225.15",PRC DELEGATED CO-COMMISSIONING,S3 9DL
Department of Health,NHS Sheffield CCG,4/30/2020,C&M-PMS Prem Healthcentre Rent,PRC DELEGATED CO-COMMISSIONING,FORGE HEALTH GROUP,31798300,"33,928.01",PRC DELEGATED CO-COMMISSIONING,S3 9DL
Department of Health,NHS Sheffield CCG,4/30/2020,C&M-PMS Prem Notional Rent,PRC DELEGATED CO-COMMISSIONING,FORGE HEALTH GROUP,31798300,"9,650.00",PRC DELEGATED CO-COMMISSIONING,S3 9DL
Department of Health,NHS Sheffield CCG,4/30/2020,C&M-GMS PCO Recruitmt & Retn,GP FORWARD VIEW,FOUNDRY MEDICAL GROUP,31776002,"40,000.00",GP FORWARD VIEW,S3 9DL
Department of Health,NHS Sheffield CCG,4/30/2020,C&M-GMS PCO Recruitmt & Retn,GP FORWARD VIEW,FOUNDRY MEDICAL GROUP,31820426,"102,000.00",GP FORWARD VIEW,S3 9DL
Department of Health,NHS Sheffield CCG,4/30/2020,Cont Care-Physical Disab (<65),CHC ADULT FULLY FUNDED,FOUR SEASONS HEALTH CARE LTD,32003472,"26,575.08",CHC SCHEDULE APRIL2020,DL1 1RW
Department of Health,NHS Sheffield CCG,4/30/2020,C&M-PMS Contract Value,PRC DELEGATED CO-COMMISSIONING,FOXHILL MEDICAL CENTRE SHEFFIELD,31798298,"51,760.92",PRC DELEGATED CO-COMMISSIONING,S6 1GA
Department of Health,NHS Sheffield CCG,4/30/2020,C&M-PMS PCN DES Participation,PRC DELEGATED CO-COMMISSIONING,FOXHILL MEDICAL CENTRE SHEFFIELD,31798298,977.79,PRC DELEGATED CO-COMMISSIONING,S6 1GA
Department of Health,NHS Sheffield CCG,4/30/2020,C&M-PMS Prem Healthcentre Rent,PRC DELEGATED CO-COMMISSIONING,FOXHILL MEDICAL CENTRE SHEFFIELD,31798298,"46,647.08",PRC DELEGATED CO-COMMISSIONING,S6 1GA
Department of Health,NHS Sheffield CCG,4/30/2020,C&M-PMS Contract Value,PRC DELEGATED CO-COMMISSIONING,GLEADLESS MEDICAL CENTRE,31798256,"69,389.67",PRC DELEGATED CO-COMMISSIONING,S14 1PQ
Department of Health,NHS Sheffield CCG,4/30/2020,C&M-PMS PCN DES Participation,PRC DELEGATED CO-COMMISSIONING,GLEADLESS MEDICAL CENTRE,31798256,"1,300.70",PRC DELEGATED CO-COMMISSIONING,S14 1PQ
Department of Health,NHS Sheffield CCG,4/30/2020,C&M-PMS Prem Notional Rent,PRC DELEGATED CO-COMMISSIONING,GLEADLESS MEDICAL CENTRE,31798256,"6,750.00",PRC DELEGATED CO-COMMISSIONING,S14 1PQ
Department of Health,NHS Sheffield CCG,4/30/2020,C&M-PMS Prem Rates,PRC DELEGATED CO-COMMISSIONING,GLEADLESS MEDICAL CENTRE,31798256,"1,685.25",PRC DELEGATED CO-COMMISSIONING,S14 1PQ
Department of Health,NHS Sheffield CCG,4/30/2020,C&M-PMS Prem Water Rates,PRC DELEGATED CO-COMMISSIONING,GLEADLESS MEDICAL CENTRE,31798256,224.64,PRC DELEGATED CO-COMMISSIONING,S14 1PQ
Department of Health,NHS Sheffield CCG,4/30/2020,C&M-GMS Cost of Drugs -Prescribing,LOCAL ENHANCED SERVICES,GRENOSIDE SURGERY,32047345,"1,744.97",LOCAL ENHANCED SERVICES,S35 8NX
Department of Health,NHS Sheffield CCG,4/30/2020,C&M-GMS Global Sum,PRC DELEGATED CO-COMMISSIONING,GRENOSIDE SURGERY,32047345,"62,273.39",PRC DELEGATED CO-COMMISSIONING,S35 8NX
Department of Health,NHS Sheffield CCG,4/30/2020,C&M-GMS PCN DES Participation,PRC DELEGATED CO-COMMISSIONING,GRENOSIDE SURGERY,32047345,"1,190.25",PRC DELEGATED CO-COMMISSIONING,S35 8NX
Department of Health,NHS Sheffield CCG,4/30/2020,C&M-GMS PCO Locum Sickness,PRC DELEGATED CO-COMMISSIONING,GRENOSIDE SURGERY,32047345,426.29,PRC DELEGATED CO-COMMISSIONING,S35 8NX
Department of Health,NHS Sheffield CCG,4/30/2020,C&M-GMS Prem Notional Rent,PRC DELEGATED CO-COMMISSIONING,GRENOSIDE SURGERY,32047345,"8,110.42",PRC DELEGATED CO-COMMISSIONING,S35 8NX
Department of Health,NHS Sheffield CCG,4/30/2020,C&M-GMS Prem Rates,PRC DELEGATED CO-COMMISSIONING,GRENOSIDE SURGERY,32047345,"2,101.75",PRC DELEGATED CO-COMMISSIONING,S35 8NX
Department of Health,NHS Sheffield CCG,4/30/2020,C&M-GMS Prof Fees Prescribing,PRC DELEGATED CO-COMMISSIONING,GRENOSIDE SURGERY,32047345,217.26,PRC DELEGATED CO-COMMISSIONING,S35 8NX
Department of Health,NHS Sheffield CCG,4/30/2020,C&M-GMS QOF Aspiration,PRC DELEGATED CO-COMMISSIONING,GRENOSIDE SURGERY,32047345,"5,686.85",PRC DELEGATED CO-COMMISSIONING,S35 8NX
Department of Health,NHS Sheffield CCG,4/30/2020,C&M-GMS Cost of Drugs -Prescribing,LOCAL ENHANCED SERVICES,GREYSTONES MEDICAL CENTRE,32047347,369.29,LOCAL ENHANCED SERVICES,S11 7BJ
Department of Health,NHS Sheffield CCG,4/30/2020,C&M-GMS Global Sum,PRC DELEGATED CO-COMMISSIONING,GREYSTONES MEDICAL CENTRE,32047347,"20,367.90",PRC DELEGATED CO-COMMISSIONING,S11 7BJ
Department of Health,NHS Sheffield CCG,4/30/2020,C&M-GMS PCN DES Participation,PRC DELEGATED CO-COMMISSIONING,GREYSTONES MEDICAL CENTRE,32047347,405.94,PRC DELEGATED CO-COMMISSIONING,S11 7BJ
Department of Health,NHS Sheffield CCG,4/30/2020,C&M-GMS Prem Notional Rent,PRC DELEGATED CO-COMMISSIONING,GREYSTONES MEDICAL CENTRE,32047347,"2,885.42",PRC DELEGATED CO-COMMISSIONING,S11 7BJ
Department of Health,NHS Sheffield CCG,4/30/2020,C&M-GMS Prem Rates,PRC DELEGATED CO-COMMISSIONING,GREYSTONES MEDICAL CENTRE,32047347,712.71,PRC DELEGATED CO-COMMISSIONING,S11 7BJ
Department of Health,NHS Sheffield CCG,4/30/2020,C&M-GMS Prem Water Rates,PRC DELEGATED CO-COMMISSIONING,GREYSTONES MEDICAL CENTRE,32047347,92.84,PRC DELEGATED CO-COMMISSIONING,S11 7BJ
Department of Health,NHS Sheffield CCG,4/30/2020,C&M-GMS Prof Fees Prescribing,PRC DELEGATED CO-COMMISSIONING,GREYSTONES MEDICAL CENTRE,32047347,62.07,PRC DELEGATED CO-COMMISSIONING,S11 7BJ
Department of Health,NHS Sheffield CCG,4/30/2020,C&M-GMS QOF Aspiration,PRC DELEGATED CO-COMMISSIONING,GREYSTONES MEDICAL CENTRE,32047347,"2,314.72",PRC DELEGATED CO-COMMISSIONING,S11 7BJ
Department of Health,NHS Sheffield CCG,4/30/2020,C&M-PMS Contract Value,PRC DELEGATED CO-COMMISSIONING,HACKENTHORPE MEDICAL CENTRE,31798258,"48,638.08",PRC DELEGATED CO-COMMISSIONING,S12 4LA
Department of Health,NHS Sheffield CCG,4/30/2020,C&M-PMS PCN DES Participation,PRC DELEGATED CO-COMMISSIONING,HACKENTHORPE MEDICAL CENTRE,31798258,926.86,PRC DELEGATED CO-COMMISSIONING,S12 4LA
Department of Health,NHS Sheffield CCG,4/30/2020,C&M-PMS Prem Notional Rent,PRC DELEGATED CO-COMMISSIONING,HACKENTHORPE MEDICAL CENTRE,31798258,"5,116.67",PRC DELEGATED CO-COMMISSIONING,S12 4LA
Department of Health,NHS Sheffield CCG,4/30/2020,C&M-GMS Cost of Drugs -Prescribing,LOCAL ENHANCED SERVICES,HANDSWORTH MEDICAL PRACTICE SHEFFIELD,32047343,"1,580.42",LOCAL ENHANCED SERVICES,S13 9BZ
Department of Health,NHS Sheffield CCG,4/30/2020,C&M-GMS Global Sum,PRC DELEGATED CO-COMMISSIONING,HANDSWORTH MEDICAL PRACTICE SHEFFIELD,32047343,"81,694.44",PRC DELEGATED CO-COMMISSIONING,S13 9BZ
Department of Health,NHS Sheffield CCG,4/30/2020,C&M-GMS PCN DES Participation,PRC DELEGATED CO-COMMISSIONING,HANDSWORTH MEDICAL PRACTICE SHEFFIELD,32047343,"1,567.06",PRC DELEGATED CO-COMMISSIONING,S13 9BZ
Department of Health,NHS Sheffield CCG,4/30/2020,C&M-GMS Prem Notional Rent,PRC DELEGATED CO-COMMISSIONING,HANDSWORTH MEDICAL PRACTICE SHEFFIELD,32047343,"3,321.66",PRC DELEGATED CO-COMMISSIONING,S13 9BZ
Department of Health,NHS Sheffield CCG,4/30/2020,C&M-GMS Prem Water Rates,PRC DELEGATED CO-COMMISSIONING,HANDSWORTH MEDICAL PRACTICE SHEFFIELD,32047343,139.20,PRC DELEGATED CO-COMMISSIONING,S13 9BZ
Department of Health,NHS Sheffield CCG,4/30/2020,C&M-GMS Prof Fees Prescribing,PRC DELEGATED CO-COMMISSIONING,HANDSWORTH MEDICAL PRACTICE SHEFFIELD,32047343,297.94,PRC DELEGATED CO-COMMISSIONING,S13 9BZ
Department of Health,NHS Sheffield CCG,4/30/2020,C&M-GMS QOF Aspiration,PRC DELEGATED CO-COMMISSIONING,HANDSWORTH MEDICAL PRACTICE SHEFFIELD,32047343,"7,811.29",PRC DELEGATED CO-COMMISSIONING,S13 9BZ
Department of Health,NHS Sheffield CCG,4/30/2020,C&M-GMS Global Sum,PRC DELEGATED CO-COMMISSIONING,HAROLD STREET MEDICAL CENTRE,32047340,"20,162.42",PRC DELEGATED CO-COMMISSIONING,S6 3QW
Department of Health,NHS Sheffield CCG,4/30/2020,C&M-GMS PCN DES Participation,PRC DELEGATED CO-COMMISSIONING,HAROLD STREET MEDICAL CENTRE,32047340,432.48,PRC DELEGATED CO-COMMISSIONING,S6 3QW
Department of Health,NHS Sheffield CCG,4/30/2020,C&M-GMS Prem Notional Rent,PRC DELEGATED CO-COMMISSIONING,HAROLD STREET MEDICAL CENTRE,32047340,"2,337.50",PRC DELEGATED CO-COMMISSIONING,S6 3QW
Department of Health,NHS Sheffield CCG,4/30/2020,C&M-GMS QOF Aspiration,PRC DELEGATED CO-COMMISSIONING,HAROLD STREET MEDICAL CENTRE,32047340,"2,228.59",PRC DELEGATED CO-COMMISSIONING,S6 3QW
Department of Health,NHS Sheffield CCG,4/30/2020,C&M-GMS Global Sum,PRC DELEGATED CO-COMMISSIONING,HEALTH CARE SURGERY,32047353,"40,870.32",PRC DELEGATED CO-COMMISSIONING,S5 8GS
Department of Health,NHS Sheffield CCG,4/30/2020,C&M-GMS PCN DES Participation,PRC DELEGATED CO-COMMISSIONING,HEALTH CARE SURGERY,32047353,796.77,PRC DELEGATED CO-COMMISSIONING,S5 8GS
Department of Health,NHS Sheffield CCG,4/30/2020,C&M-GMS Prem Notional Rent,PRC DELEGATED CO-COMMISSIONING,HEALTH CARE SURGERY,32047353,"3,862.50",PRC DELEGATED CO-COMMISSIONING,S5 8GS
Department of Health,NHS Sheffield CCG,4/30/2020,C&M-GMS Prem Rates,PRC DELEGATED CO-COMMISSIONING,HEALTH CARE SURGERY,32047353,750.69,PRC DELEGATED CO-COMMISSIONING,S5 8GS
Department of Health,NHS Sheffield CCG,4/30/2020,C&M-GMS QOF Aspiration,PRC DELEGATED CO-COMMISSIONING,HEALTH CARE SURGERY,32047353,"4,056.36",PRC DELEGATED CO-COMMISSIONING,S5 8GS
Department of Health,NHS Sheffield CCG,4/30/2020,C&M-GMS Cost of Drugs -Prescribing,LOCAL ENHANCED SERVICES,HEELEY GREEN SURGERY,32047349,"1,192.43",LOCAL ENHANCED SERVICES,S2 3AJ
Department of Health,NHS Sheffield CCG,4/30/2020,C&M-GMS Global Sum,PRC DELEGATED CO-COMMISSIONING,HEELEY GREEN SURGERY,32047349,"42,858.71",PRC DELEGATED CO-COMMISSIONING,S2 3AJ
Department of Health,NHS Sheffield CCG,4/30/2020,C&M-GMS PCN DES Participation,PRC DELEGATED CO-COMMISSIONING,HEELEY GREEN SURGERY,32047349,875.00,PRC DELEGATED CO-COMMISSIONING,S2 3AJ
Department of Health,NHS Sheffield CCG,4/30/2020,C&M-GMS PCO Locum Sickness,PRC DELEGATED CO-COMMISSIONING,HEELEY GREEN SURGERY,32047349,"13,947.09",PRC DELEGATED CO-COMMISSIONING,S2 3AJ
Department of Health,NHS Sheffield CCG,4/30/2020,C&M-GMS Prem Notional Rent,PRC DELEGATED CO-COMMISSIONING,HEELEY GREEN SURGERY,32047349,"3,254.17",PRC DELEGATED CO-COMMISSIONING,S2 3AJ
Department of Health,NHS Sheffield CCG,4/30/2020,C&M-GMS Prof Fees Prescribing,PRC DELEGATED CO-COMMISSIONING,HEELEY GREEN SURGERY,32047349,117.93,PRC DELEGATED CO-COMMISSIONING,S2 3AJ
Department of Health,NHS Sheffield CCG,4/30/2020,C&M-GMS QOF Aspiration,PRC DELEGATED CO-COMMISSIONING,HEELEY GREEN SURGERY,32047349,"4,709.02",PRC DELEGATED CO-COMMISSIONING,S2 3AJ
Department of Health,NHS Sheffield CCG,4/30/2020,Cont Care- Prior Year Payments,ADULT JOINT FUNDED CONTINUING CARE,HESLEY GROUP,32142055,"221,980.80",ADULT JOINT FUNDED CONTINUING CARE,DN11 9HH
Department of Health,NHS Sheffield CCG,4/30/2020,C&M-GMS Cost of Drugs -Prescribing,LOCAL ENHANCED SERVICES,HOLLIES MEDICAL CENTRE,32047351,"1,502.74",LOCAL ENHANCED SERVICES,S11 9AL
Department of Health,NHS Sheffield CCG,4/30/2020,C&M-GMS Global Sum,PRC DELEGATED CO-COMMISSIONING,HOLLIES MEDICAL CENTRE,32047351,"64,319.97",PRC DELEGATED CO-COMMISSIONING,S11 9AL
Department of Health,NHS Sheffield CCG,4/30/2020,C&M-GMS PCN DES Participation,PRC DELEGATED CO-COMMISSIONING,HOLLIES MEDICAL CENTRE,32047351,"1,215.60",PRC DELEGATED CO-COMMISSIONING,S11 9AL
Department of Health,NHS Sheffield CCG,4/30/2020,C&M-GMS Prem Notional Rent,PRC DELEGATED CO-COMMISSIONING,HOLLIES MEDICAL CENTRE,32047351,"3,229.17",PRC DELEGATED CO-COMMISSIONING,S11 9AL
Department of Health,NHS Sheffield CCG,4/30/2020,C&M-GMS Prof Fees Prescribing,PRC DELEGATED CO-COMMISSIONING,HOLLIES MEDICAL CENTRE,32047351,200.70,PRC DELEGATED CO-COMMISSIONING,S11 9AL
Department of Health,NHS Sheffield CCG,4/30/2020,C&M-GMS QOF Aspiration,PRC DELEGATED CO-COMMISSIONING,HOLLIES MEDICAL CENTRE,32047351,"6,991.81",PRC DELEGATED CO-COMMISSIONING,S11 9AL
Department of Health,NHS Sheffield CCG,4/30/2020,Cont Care-Physical Disab (<65),CHC ADULT FULLY FUNDED,HORIZON CARE HOMES LTD,32003665,"30,241.24",CHC SCHEDULE APRIL2020,S25 3QA
Department of Health,NHS Sheffield CCG,4/30/2020,Cont Care-Physical Disab (<65),CHC ADULT FULLY FUNDED,HORIZON CARE HOMES LTD,32003678,"60,200.39",CHC SCHEDULE APRIL2020,S25 3QA
Department of Health,NHS Sheffield CCG,4/30/2020,External Consultancy Fees,BEREAVEMENT SERVICE,IDEAL HEALTH CONSULTANTS LTD,31820413,"114,000.00",BEREAVEMENT SERVICE,GU1 4SJ
Department of Health,NHS Sheffield CCG,4/30/2020,C&M-PMS Contract Value,PRC DELEGATED CO-COMMISSIONING,JAUNTY SPRINGS HEALTH CENTRE,31798260,"31,178.75",PRC DELEGATED CO-COMMISSIONING,S12 3DZ
Department of Health,NHS Sheffield CCG,4/30/2020,C&M-PMS DES Extended Hours Access,PRC DELEGATED CO-COMMISSIONING,JAUNTY SPRINGS HEALTH CENTRE,31798260,"4,214.06",PRC DELEGATED CO-COMMISSIONING,S12 3DZ
Department of Health,NHS Sheffield CCG,4/30/2020,C&M-PMS PCN DES Clinical Director,PRC DELEGATED CO-COMMISSIONING,JAUNTY SPRINGS HEALTH CENTRE,31798260,"2,098.31",PRC DELEGATED CO-COMMISSIONING,S12 3DZ
Department of Health,NHS Sheffield CCG,4/30/2020,C&M-PMS PCN DES PCN support,LOCAL ENHANCED SERVICES,JAUNTY SPRINGS HEALTH CENTRE,31798260,"4,359.38",LOCAL ENHANCED SERVICES,S12 3DZ
Department of Health,NHS Sheffield CCG,4/30/2020,C&M-PMS PCN DES Participation,PRC DELEGATED CO-COMMISSIONING,JAUNTY SPRINGS HEALTH CENTRE,31798260,583.08,PRC DELEGATED CO-COMMISSIONING,S12 3DZ
Department of Health,NHS Sheffield CCG,4/30/2020,C&M-PMS Prem Notional Rent,PRC DELEGATED CO-COMMISSIONING,JAUNTY SPRINGS HEALTH CENTRE,31798260,"3,208.33",PRC DELEGATED CO-COMMISSIONING,S12 3DZ
Department of Health,NHS Sheffield CCG,4/30/2020,C&M-PMS Prem Rates,PRC DELEGATED CO-COMMISSIONING,JAUNTY SPRINGS HEALTH CENTRE,31798260,831.05,PRC DELEGATED CO-COMMISSIONING,S12 3DZ
Department of Health,NHS Sheffield CCG,4/30/2020,C&M-PMS Prem Water Rates,PRC DELEGATED CO-COMMISSIONING,JAUNTY SPRINGS HEALTH CENTRE,31798260,41.13,PRC DELEGATED CO-COMMISSIONING,S12 3DZ
Department of Health,NHS Sheffield CCG,4/30/2020,C&M-GMS IT Comm Servs -GP Practices,PRIMARY CARE IT,KIER BUSINESS SERVICES LTD,31919188,"25,895.05",https://nww.einvoice-prod.sbs.nhs.uk:8179/invoicepdf/2009ed91-6103-5145-963b-f01afc5a31bd,SG19 2BD
Department of Health,NHS Sheffield CCG,4/30/2020,C&M-GMS IT Comm Servs -GP Practices,PRIMARY CARE IT,KIER BUSINESS SERVICES LTD,32102479,"71,244.68",https://nww.einvoice-prod.sbs.nhs.uk:8179/invoicepdf/79b9ff4c-08a1-5860-b69c-4f02f04207c8,SG19 2BD
Department of Health,NHS Sheffield CCG,4/30/2020,C&M-GMS LES Translation Fees,INTERPRETING SERVICES,LANGUAGELINE SOLUTIONS,31803395,"39,323.28",https://nww.einvoice-prod.sbs.nhs.uk:8179/invoicepdf/91c71e88-ea72-5fe7-9975-80a5a44481a3,E14 5NR
Department of Health,NHS Sheffield CCG,4/30/2020,C&M-GMS LES Translation Fees,INTERPRETING SERVICES,LANGUAGELINE SOLUTIONS,31803398,"31,708.20",https://nww.einvoice-prod.sbs.nhs.uk:8179/invoicepdf/fe95850a-e0cb-5981-a239-aff5f05c9a0b,E14 5NR
Department of Health,NHS Sheffield CCG,4/30/2020,Hcare Srv Rec NHS Trust-Contract Baseline,ACUTE COMMISSIONING,LEEDS TEACHING HOSPITALS NHS TRUST,31848491,"47,860.51",ACUTE COMMISSIONING,LS9 7TF
Department of Health,NHS Sheffield CCG,4/30/2020,Cont Care-Physical Disab (<65),CHC ADULT FULLY FUNDED,LONGLEY HEALTH CARE LTD,32003487,"93,519.14",CHC SCHEDULE APRIL2020,S5 7JZ
Department of Health,NHS Sheffield CCG,4/30/2020,Cont Care- Prior Year Payments,CHC ADULT FULLY FUNDED,LOXLEY HEALTH CARE LTD,32003195,"-55,925.36",CHC SCHEDULE APRIL 2020PY,S4 8NB
Department of Health,NHS Sheffield CCG,4/30/2020,Cont Care- Prior Year Payments,CHC ADULT FULLY FUNDED,LOXLEY HEALTH CARE LTD,32003407,"59,849.70",CHC SCHEDULE APRIL 2020PY,S4 8NB
Department of Health,NHS Sheffield CCG,4/30/2020,Cont Care-Physical Disab (<65),CHC ADULT FULLY FUNDED,LOXLEY HEALTH CARE LTD,32003688,"87,911.00",CHC SCHEDULE APRIL2020,S4 8NB
Department of Health,NHS Sheffield CCG,4/30/2020,C&M-PMS Contract Value,PRC DELEGATED CO-COMMISSIONING,MANCHESTER ROAD SURGERY SHEFFIELD,31798264,"33,169.83",PRC DELEGATED CO-COMMISSIONING,S10 5PN
Department of Health,NHS Sheffield CCG,4/30/2020,C&M-PMS PCN DES Participation,PRC DELEGATED CO-COMMISSIONING,MANCHESTER ROAD SURGERY SHEFFIELD,31798264,618.32,PRC DELEGATED CO-COMMISSIONING,S10 5PN
Department of Health,NHS Sheffield CCG,4/30/2020,C&M-PMS Prem Cost Rent,PRC DELEGATED CO-COMMISSIONING,MANCHESTER ROAD SURGERY SHEFFIELD,31798264,"3,091.46",PRC DELEGATED CO-COMMISSIONING,S10 5PN
Department of Health,NHS Sheffield CCG,4/30/2020,C&M-PMS Prem Notional Rent,PRC DELEGATED CO-COMMISSIONING,MANCHESTER ROAD SURGERY SHEFFIELD,31798264,442.92,PRC DELEGATED CO-COMMISSIONING,S10 5PN
Department of Health,NHS Sheffield CCG,4/30/2020,C&M-PMS Prem Rates,PRC DELEGATED CO-COMMISSIONING,MANCHESTER ROAD SURGERY SHEFFIELD,31798264,981.25,PRC DELEGATED CO-COMMISSIONING,S10 5PN
Department of Health,NHS Sheffield CCG,4/30/2020,Hcare Srv Rec Fdtn Trust-Contract Baseline,ACUTE COMMISSIONING,MANCHESTER UNIVERSITY NHS FOUNDATION TRUST,31848501,"25,929.20",ACUTE COMMISSIONING,M41 5SL
Department of Health,NHS Sheffield CCG,4/30/2020,C&M-PMS Contract Value,PRC DELEGATED CO-COMMISSIONING,MANOR & PARK GROUP PRACTICE,31800408,"70,956.83",PRC DELEGATED CO-COMMISSIONING,S2 5QQ
Department of Health,NHS Sheffield CCG,4/30/2020,C&M-PMS PCN DES Participation,PRC DELEGATED CO-COMMISSIONING,MANOR & PARK GROUP PRACTICE,31800408,"1,445.35",PRC DELEGATED CO-COMMISSIONING,S2 5QQ
Department of Health,NHS Sheffield CCG,4/30/2020,C&M-PMS Prem Notional Rent,PRC DELEGATED CO-COMMISSIONING,MANOR & PARK GROUP PRACTICE,31800408,"9,050.00",PRC DELEGATED CO-COMMISSIONING,S2 5QQ
Department of Health,NHS Sheffield CCG,4/30/2020,C&M-PMS Prem Rates,PRC DELEGATED CO-COMMISSIONING,MANOR & PARK GROUP PRACTICE,31800408,"1,866.92",PRC DELEGATED CO-COMMISSIONING,S2 5QQ
Department of Health,NHS Sheffield CCG,4/30/2020,C&M-GMS Cost of Drugs -Prescribing,LOCAL ENHANCED SERVICES,MATHEWS PRACTICE,32047361,66.91,LOCAL ENHANCED SERVICES,S2 4UJ
Department of Health,NHS Sheffield CCG,4/30/2020,C&M-GMS Global Sum,PRC DELEGATED CO-COMMISSIONING,MATHEWS PRACTICE,32047361,"59,691.47",PRC DELEGATED CO-COMMISSIONING,S2 4UJ
Department of Health,NHS Sheffield CCG,4/30/2020,C&M-GMS PCN DES Participation,PRC DELEGATED CO-COMMISSIONING,MATHEWS PRACTICE,32047361,"1,281.64",PRC DELEGATED CO-COMMISSIONING,S2 4UJ
Department of Health,NHS Sheffield CCG,4/30/2020,C&M-GMS Prem Rates,PRC DELEGATED CO-COMMISSIONING,MATHEWS PRACTICE,32047361,"2,184.25",PRC DELEGATED CO-COMMISSIONING,S2 4UJ
Department of Health,NHS Sheffield CCG,4/30/2020,C&M-GMS Prem Water Rates,PRC DELEGATED CO-COMMISSIONING,MATHEWS PRACTICE,32047361,417.72,PRC DELEGATED CO-COMMISSIONING,S2 4UJ
Department of Health,NHS Sheffield CCG,4/30/2020,C&M-GMS Prof Fees Prescribing,PRC DELEGATED CO-COMMISSIONING,MATHEWS PRACTICE,32047361,55.86,PRC DELEGATED CO-COMMISSIONING,S2 4UJ
Department of Health,NHS Sheffield CCG,4/30/2020,C&M-GMS QOF Aspiration,PRC DELEGATED CO-COMMISSIONING,MATHEWS PRACTICE,32047361,"7,156.84",PRC DELEGATED CO-COMMISSIONING,S2 4UJ
Department of Health,NHS Sheffield CCG,4/30/2020,C&M-PMS Contract Value,PRC DELEGATED CO-COMMISSIONING,MEADOWHEAD GROUP PRACTICE,31798262,"73,065.42",PRC DELEGATED CO-COMMISSIONING,S8 7RL
Department of Health,NHS Sheffield CCG,4/30/2020,C&M-PMS PCN DES Participation,PRC DELEGATED CO-COMMISSIONING,MEADOWHEAD GROUP PRACTICE,31798262,"1,403.48",PRC DELEGATED CO-COMMISSIONING,S8 7RL
Department of Health,NHS Sheffield CCG,4/30/2020,C&M-PMS Prem Cost Rent,PRC DELEGATED CO-COMMISSIONING,MEADOWHEAD GROUP PRACTICE,31798262,"3,647.42",PRC DELEGATED CO-COMMISSIONING,S8 7RL
Department of Health,NHS Sheffield CCG,4/30/2020,C&M-PMS Prem Notional Rent,PRC DELEGATED CO-COMMISSIONING,MEADOWHEAD GROUP PRACTICE,31798262,"3,358.33",PRC DELEGATED CO-COMMISSIONING,S8 7RL
Department of Health,NHS Sheffield CCG,4/30/2020,C&M-GMS Cost of Drugs -Prescribing,LOCAL ENHANCED SERVICES,MEDICAL CENTRE CRYSTAL PEAKS,32047357,"2,099.56",LOCAL ENHANCED SERVICES,S20 7HZ
Department of Health,NHS Sheffield CCG,4/30/2020,C&M-GMS Global Sum,PRC DELEGATED CO-COMMISSIONING,MEDICAL CENTRE CRYSTAL PEAKS,32047357,"49,336.98",PRC DELEGATED CO-COMMISSIONING,S20 7HZ
Department of Health,NHS Sheffield CCG,4/30/2020,C&M-GMS PCN DES Participation,PRC DELEGATED CO-COMMISSIONING,MEDICAL CENTRE CRYSTAL PEAKS,32047357,950.00,PRC DELEGATED CO-COMMISSIONING,S20 7HZ
Department of Health,NHS Sheffield CCG,4/30/2020,C&M-GMS Prem Actual Rent,PRC DELEGATED CO-COMMISSIONING,MEDICAL CENTRE CRYSTAL PEAKS,32047357,"17,610.00",PRC DELEGATED CO-COMMISSIONING,S20 7HZ
Department of Health,NHS Sheffield CCG,4/30/2020,C&M-GMS Prem Notional Rent,PRC DELEGATED CO-COMMISSIONING,MEDICAL CENTRE CRYSTAL PEAKS,32047357,270.00,PRC DELEGATED CO-COMMISSIONING,S20 7HZ
Department of Health,NHS Sheffield CCG,4/30/2020,C&M-GMS Prem Rates,PRC DELEGATED CO-COMMISSIONING,MEDICAL CENTRE CRYSTAL PEAKS,32047357,"1,071.50",PRC DELEGATED CO-COMMISSIONING,S20 7HZ
Department of Health,NHS Sheffield CCG,4/30/2020,C&M-GMS Prof Fees Prescribing,PRC DELEGATED CO-COMMISSIONING,MEDICAL CENTRE CRYSTAL PEAKS,32047357,343.46,PRC DELEGATED CO-COMMISSIONING,S20 7HZ
Department of Health,NHS Sheffield CCG,4/30/2020,C&M-GMS QOF Aspiration,PRC DELEGATED CO-COMMISSIONING,MEDICAL CENTRE CRYSTAL PEAKS,32047357,"6,211.79",PRC DELEGATED CO-COMMISSIONING,S20 7HZ
Department of Health,NHS Sheffield CCG,4/30/2020,Hcare Srv Rec NHS Trust-Contract Baseline,ACUTE COMMISSIONING,MID YORKSHIRE HOSPITALS NHS TRUST,31848492,"26,386.10",ACUTE COMMISSIONING,WF1 4DG
Department of Health,NHS Sheffield CCG,4/30/2020,Hcare Srv Rec NHS Trust-Contract Baseline,ACUTE COMMISSIONING,MID YORKSHIRE HOSPITALS NHS TRUST,32030130,"-38,991.00",https://nww.einvoice-prod.sbs.nhs.uk:8179/invoicepdf/97caa3d8-856e-5961-bf13-15d73ce414c0,WF1 4DG
Department of Health,NHS Sheffield CCG,4/30/2020,Hcare Srv Rec NHS Trust-Contract Baseline,ACUTE COMMISSIONING,MID YORKSHIRE HOSPITALS NHS TRUST,32141759,"45,563.00",https://nww.einvoice-prod.sbs.nhs.uk:8179/invoicepdf/ef7cdf5d-1f5d-5e4d-b172-e223606ab1a9,WF1 4DG
Department of Health,NHS Sheffield CCG,4/30/2020,C&M-GMS Cost of Drugs -Prescribing,LOCAL ENHANCED SERVICES,MILL ROAD SURGERY SHEFFIELD,32047364,630.46,LOCAL ENHANCED SERVICES,S35 9XQ
Department of Health,NHS Sheffield CCG,4/30/2020,C&M-GMS Global Sum,PRC DELEGATED CO-COMMISSIONING,MILL ROAD SURGERY SHEFFIELD,32047364,"42,215.80",PRC DELEGATED CO-COMMISSIONING,S35 9XQ
Department of Health,NHS Sheffield CCG,4/30/2020,C&M-GMS PCN DES Participation,PRC DELEGATED CO-COMMISSIONING,MILL ROAD SURGERY SHEFFIELD,32047364,842.44,PRC DELEGATED CO-COMMISSIONING,S35 9XQ
Department of Health,NHS Sheffield CCG,4/30/2020,C&M-GMS Prem Notional Rent,PRC DELEGATED CO-COMMISSIONING,MILL ROAD SURGERY SHEFFIELD,32047364,"4,593.33",PRC DELEGATED CO-COMMISSIONING,S35 9XQ
Department of Health,NHS Sheffield CCG,4/30/2020,C&M-GMS Prem Rates,PRC DELEGATED CO-COMMISSIONING,MILL ROAD SURGERY SHEFFIELD,32047364,"1,071.50",PRC DELEGATED CO-COMMISSIONING,S35 9XQ
Department of Health,NHS Sheffield CCG,4/30/2020,C&M-GMS Prof Fees Prescribing,PRC DELEGATED CO-COMMISSIONING,MILL ROAD SURGERY SHEFFIELD,32047364,126.22,PRC DELEGATED CO-COMMISSIONING,S35 9XQ
Department of Health,NHS Sheffield CCG,4/30/2020,C&M-GMS QOF Aspiration,PRC DELEGATED CO-COMMISSIONING,MILL ROAD SURGERY SHEFFIELD,32047364,"5,088.50",PRC DELEGATED CO-COMMISSIONING,S35 9XQ
Department of Health,NHS Sheffield CCG,4/30/2020,C&M-PMS Contract Value,PRC DELEGATED CO-COMMISSIONING,MOSBOROUGH HEALTH CENTRE,31798266,"50,149.58",PRC DELEGATED CO-COMMISSIONING,S20 5BQ
Department of Health,NHS Sheffield CCG,4/30/2020,C&M-PMS PCN DES Participation,PRC DELEGATED CO-COMMISSIONING,MOSBOROUGH HEALTH CENTRE,31798266,927.38,PRC DELEGATED CO-COMMISSIONING,S20 5BQ
Department of Health,NHS Sheffield CCG,4/30/2020,C&M-PMS Prem Notional Rent,PRC DELEGATED CO-COMMISSIONING,MOSBOROUGH HEALTH CENTRE,31798266,"4,091.67",PRC DELEGATED CO-COMMISSIONING,S20 5BQ
Department of Health,NHS Sheffield CCG,4/30/2020,C&M-PMS Prem Water Rates,PRC DELEGATED CO-COMMISSIONING,MOSBOROUGH HEALTH CENTRE,31798266,93.86,PRC DELEGATED CO-COMMISSIONING,S20 5BQ
Department of Health,NHS Sheffield CCG,4/30/2020,C&M-PMS Contract Value,PRC DELEGATED CO-COMMISSIONING,NETHERGREEN SURGERY,31798268,"63,326.25",PRC DELEGATED CO-COMMISSIONING,S11 7EJ
Department of Health,NHS Sheffield CCG,4/30/2020,C&M-PMS PCN DES Participation,PRC DELEGATED CO-COMMISSIONING,NETHERGREEN SURGERY,31798268,"1,208.31",PRC DELEGATED CO-COMMISSIONING,S11 7EJ
Department of Health,NHS Sheffield CCG,4/30/2020,C&M-PMS Prem Cost Rent,PRC DELEGATED CO-COMMISSIONING,NETHERGREEN SURGERY,31798268,"5,057.33",PRC DELEGATED CO-COMMISSIONING,S11 7EJ
Department of Health,NHS Sheffield CCG,4/30/2020,C&M-PMS Prem Water Rates,PRC DELEGATED CO-COMMISSIONING,NETHERGREEN SURGERY,31798268,230.67,PRC DELEGATED CO-COMMISSIONING,S11 7EJ
Department of Health,NHS Sheffield CCG,4/30/2020,Charges from CSU,BUSINESS INFORMATICS,NHS NORTH OF ENGLAND CSU,31780212,"27,376.00",NHS CCG INCOME - SLA 44811016,WF3 1WE
Department of Health,NHS Sheffield CCG,4/30/2020,Voids and Subsidies,RECHARGES NHS PROPERTY SERVICES LTD,NHS PROPERTY SERVICES LTD,31849643,"25,177.01",https://nww.einvoice-prod.sbs.nhs.uk:8179/invoicepdf/6552209a-7458-518d-bd13-e23c439a9240,EC2V 7NG
Department of Health,NHS Sheffield CCG,4/30/2020,Voids and Subsidies,RECHARGES NHS PROPERTY SERVICES LTD,NHS PROPERTY SERVICES LTD,31849655,"31,450.78",https://nww.einvoice-prod.sbs.nhs.uk:8179/invoicepdf/9d01bd77-60d5-59e2-914c-8873c773ec1a,EC2V 7NG
Department of Health,NHS Sheffield CCG,4/30/2020,Service Charge,ESTATES AND FACILITIES,NHS PROPERTY SERVICES LTD,31868958,"74,984.90",https://nww.einvoice-prod.sbs.nhs.uk:8179/invoicepdf/8161fedb-4be2-589f-86ba-623226299408,EC2V 7NG
Department of Health,NHS Sheffield CCG,4/30/2020,C&M-GMS Cost of Drugs -Prescribing,LOCAL ENHANCED SERVICES,NORFOLK PARK HEALTH CENTRE,32047369,555.84,LOCAL ENHANCED SERVICES,S2 3TA
Department of Health,NHS Sheffield CCG,4/30/2020,C&M-GMS Global Sum,PRC DELEGATED CO-COMMISSIONING,NORFOLK PARK HEALTH CENTRE,32047369,"41,968.89",PRC DELEGATED CO-COMMISSIONING,S2 3TA
Department of Health,NHS Sheffield CCG,4/30/2020,C&M-GMS PCN DES Participation,PRC DELEGATED CO-COMMISSIONING,NORFOLK PARK HEALTH CENTRE,32047369,763.41,PRC DELEGATED CO-COMMISSIONING,S2 3TA
Department of Health,NHS Sheffield CCG,4/30/2020,C&M-GMS Prem Healthcentre Rent,PRC DELEGATED CO-COMMISSIONING,NORFOLK PARK HEALTH CENTRE,32047369,"24,820.01",PRC DELEGATED CO-COMMISSIONING,S2 3TA
Department of Health,NHS Sheffield CCG,4/30/2020,C&M-GMS Prof Fees Prescribing,PRC DELEGATED CO-COMMISSIONING,NORFOLK PARK HEALTH CENTRE,32047369,126.21,PRC DELEGATED CO-COMMISSIONING,S2 3TA
Department of Health,NHS Sheffield CCG,4/30/2020,C&M-GMS QOF Aspiration,PRC DELEGATED CO-COMMISSIONING,NORFOLK PARK HEALTH CENTRE,32047369,"3,941.29",PRC DELEGATED CO-COMMISSIONING,S2 3TA
Department of Health,NHS Sheffield CCG,4/30/2020,C&M-GMS Cost of Drugs -Prescribing,LOCAL ENHANCED SERVICES,NORWOOD MEDICAL CENTRE SHEFFIELD,32047372,"1,955.14",LOCAL ENHANCED SERVICES,S5 7HD
Department of Health,NHS Sheffield CCG,4/30/2020,C&M-GMS Global Sum,PRC DELEGATED CO-COMMISSIONING,NORWOOD MEDICAL CENTRE SHEFFIELD,32047372,"68,252.13",PRC DELEGATED CO-COMMISSIONING,S5 7HD
Department of Health,NHS Sheffield CCG,4/30/2020,C&M-GMS PCN DES Participation,PRC DELEGATED CO-COMMISSIONING,NORWOOD MEDICAL CENTRE SHEFFIELD,32047372,"1,337.61",PRC DELEGATED CO-COMMISSIONING,S5 7HD
Department of Health,NHS Sheffield CCG,4/30/2020,C&M-GMS Prem Notional Rent,PRC DELEGATED CO-COMMISSIONING,NORWOOD MEDICAL CENTRE SHEFFIELD,32047372,"5,187.50",PRC DELEGATED CO-COMMISSIONING,S5 7HD
Department of Health,NHS Sheffield CCG,4/30/2020,C&M-GMS Prof Fees Prescribing,PRC DELEGATED CO-COMMISSIONING,NORWOOD MEDICAL CENTRE SHEFFIELD,32047372,444.85,PRC DELEGATED CO-COMMISSIONING,S5 7HD
Department of Health,NHS Sheffield CCG,4/30/2020,C&M-GMS QOF Aspiration,PRC DELEGATED CO-COMMISSIONING,NORWOOD MEDICAL CENTRE SHEFFIELD,32047372,"8,171.17",PRC DELEGATED CO-COMMISSIONING,S5 7HD
Department of Health,NHS Sheffield CCG,4/30/2020,Hcare Srv Rec NHS Trust-Contract Baseline,ACUTE COMMISSIONING,NOTTINGHAM UNIVERSITY HOSPITALS NHS TRUST,32030070,"26,139.00",https://nww.einvoice-prod.sbs.nhs.uk:8179/invoicepdf/93272350-2a31-5234-9bfc-acc110c092e9,NG5 1PB
Department of Health,NHS Sheffield CCG,4/30/2020,Clinical&Medical-Independent Sector,ACUTE COMMISSIONING,ONEHEALTH GROUP,31919214,"73,076.00",https://nww.einvoice-prod.sbs.nhs.uk:8179/invoicepdf/4e0fd3d8-a187-5776-985a-3f732fb0f82b,S11 8UX
Department of Health,NHS Sheffield CCG,4/30/2020,Clinical&Medical-Independent Sector,ACUTE COMMISSIONING,ONEHEALTH GROUP,31919242,"-73,076.00",https://nww.einvoice-prod.sbs.nhs.uk:8179/invoicepdf/825dec47-3692-577e-93a2-6c8fa279644b,S11 8UX
Department of Health,NHS Sheffield CCG,4/30/2020,Clinical&Medical-Independent Sector,ACUTE COMMISSIONING,ONEHEALTH GROUP,31919247,"74,519.00",https://nww.einvoice-prod.sbs.nhs.uk:8179/invoicepdf/289078f8-bf91-5377-9d33-9dbb6bddb775,S11 8UX
Department of Health,NHS Sheffield CCG,4/30/2020,C&M-GMS Cost of Drugs -Dispensing,LOCAL ENHANCED SERVICES,OUGHTIBRIDGE SURGERY,32047376,"31,536.22",LOCAL ENHANCED SERVICES,S35 0FW
Department of Health,NHS Sheffield CCG,4/30/2020,C&M-GMS Global Sum,PRC DELEGATED CO-COMMISSIONING,OUGHTIBRIDGE SURGERY,32047376,"44,872.93",PRC DELEGATED CO-COMMISSIONING,S35 0FW
Department of Health,NHS Sheffield CCG,4/30/2020,C&M-GMS PCN DES Participation,PRC DELEGATED CO-COMMISSIONING,OUGHTIBRIDGE SURGERY,32047376,889.02,PRC DELEGATED CO-COMMISSIONING,S35 0FW
Department of Health,NHS Sheffield CCG,4/30/2020,C&M-GMS Prem Notional Rent,PRC DELEGATED CO-COMMISSIONING,OUGHTIBRIDGE SURGERY,32047376,"3,957.33",PRC DELEGATED CO-COMMISSIONING,S35 0FW
Department of Health,NHS Sheffield CCG,4/30/2020,C&M-GMS Prem Rates,PRC DELEGATED CO-COMMISSIONING,OUGHTIBRIDGE SURGERY,32047376,"1,071.50",PRC DELEGATED CO-COMMISSIONING,S35 0FW
Department of Health,NHS Sheffield CCG,4/30/2020,C&M-GMS Prem Water Rates,PRC DELEGATED CO-COMMISSIONING,OUGHTIBRIDGE SURGERY,32047376,162.92,PRC DELEGATED CO-COMMISSIONING,S35 0FW
Department of Health,NHS Sheffield CCG,4/30/2020,C&M-GMS Prof Fees Dispensing,PRC DELEGATED CO-COMMISSIONING,OUGHTIBRIDGE SURGERY,32047376,"3,766.46",PRC DELEGATED CO-COMMISSIONING,S35 0FW
Department of Health,NHS Sheffield CCG,4/30/2020,C&M-GMS PrscrptnChrgsColl&RmttdbyGP,LOCAL ENHANCED SERVICES,OUGHTIBRIDGE SURGERY,32047376,549.00,LOCAL ENHANCED SERVICES,S35 0FW
Department of Health,NHS Sheffield CCG,4/30/2020,C&M-GMS QOF Aspiration,PRC DELEGATED CO-COMMISSIONING,OUGHTIBRIDGE SURGERY,32047376,"4,261.60",PRC DELEGATED CO-COMMISSIONING,S35 0FW
Department of Health,NHS Sheffield CCG,4/30/2020,C&M-PMS Contract Value,PRC DELEGATED CO-COMMISSIONING,OWLTHORPE MEDICAL CENTRE,31798270,"32,945.58",PRC DELEGATED CO-COMMISSIONING,S20 6PD
Department of Health,NHS Sheffield CCG,4/30/2020,C&M-PMS PCN DES Participation,PRC DELEGATED CO-COMMISSIONING,OWLTHORPE MEDICAL CENTRE,31798270,639.06,PRC DELEGATED CO-COMMISSIONING,S20 6PD
Department of Health,NHS Sheffield CCG,4/30/2020,C&M-PMS Prem Actual Rent,PRC DELEGATED CO-COMMISSIONING,OWLTHORPE MEDICAL CENTRE,31798270,"7,539.58",PRC DELEGATED CO-COMMISSIONING,S20 6PD
Department of Health,NHS Sheffield CCG,4/30/2020,C&M-PMS Prem Water Rates,PRC DELEGATED CO-COMMISSIONING,OWLTHORPE MEDICAL CENTRE,31798270,113.77,PRC DELEGATED CO-COMMISSIONING,S20 6PD
Department of Health,NHS Sheffield CCG,4/30/2020,C&M-PMS Contract Value,PRC DELEGATED CO-COMMISSIONING,PAGE HALL MEDICAL CENTRE,31812281,"57,696.83",PRC DELEGATED CO-COMMISSIONING,S4 8GB
Department of Health,NHS Sheffield CCG,4/30/2020,C&M-PMS PCN DES Participation,PRC DELEGATED CO-COMMISSIONING,PAGE HALL MEDICAL CENTRE,31812281,"1,083.01",PRC DELEGATED CO-COMMISSIONING,S4 8GB
Department of Health,NHS Sheffield CCG,4/30/2020,C&M-PMS Prem Notional Rent,PRC DELEGATED CO-COMMISSIONING,PAGE HALL MEDICAL CENTRE,31812281,"4,833.33",PRC DELEGATED CO-COMMISSIONING,S4 8GB
Department of Health,NHS Sheffield CCG,4/30/2020,C&M-PMS Prem Rates,PRC DELEGATED CO-COMMISSIONING,PAGE HALL MEDICAL CENTRE,31812281,"1,284.25",PRC DELEGATED CO-COMMISSIONING,S4 8GB
Department of Health,NHS Sheffield CCG,4/30/2020,C&M-GMS LES Equitable Funding,LOCAL ENHANCED SERVICES,PORTER BROOK MEDICAL CENTRE,31732376,"26,776.00",EQUITABLEFUNDQ4 201920,S11 8HN
Department of Health,NHS Sheffield CCG,4/30/2020,C&M-PMS GP Statutory Levy,PRC DELEGATED CO-COMMISSIONING,PORTER BROOK MEDICAL CENTRE,31798272,"-1,041.11",PRC DELEGATED CO-COMMISSIONING,S11 8HN
Department of Health,NHS Sheffield CCG,4/30/2020,C&M-PMS Out of Hours Opt Outs,PRC DELEGATED CO-COMMISSIONING,PORTER BROOK MEDICAL CENTRE,31798272,"-7,825.00",PRC DELEGATED CO-COMMISSIONING,S11 8HN
Department of Health,NHS Sheffield CCG,4/30/2020,C&M-PMS Contract Value,PRC DELEGATED CO-COMMISSIONING,PORTER BROOK MEDICAL CENTRE,31798273,"167,806.58",PRC DELEGATED CO-COMMISSIONING,S11 8HN
Department of Health,NHS Sheffield CCG,4/30/2020,C&M-PMS PCN DES Participation,PRC DELEGATED CO-COMMISSIONING,PORTER BROOK MEDICAL CENTRE,31798273,"3,163.47",PRC DELEGATED CO-COMMISSIONING,S11 8HN
Department of Health,NHS Sheffield CCG,4/30/2020,C&M-PMS Prem Actual Rent,PRC DELEGATED CO-COMMISSIONING,PORTER BROOK MEDICAL CENTRE,31798273,"1,666.67",PRC DELEGATED CO-COMMISSIONING,S11 8HN
Department of Health,NHS Sheffield CCG,4/30/2020,C&M-PMS Prem Notional Rent,PRC DELEGATED CO-COMMISSIONING,PORTER BROOK MEDICAL CENTRE,31798273,"9,666.67",PRC DELEGATED CO-COMMISSIONING,S11 8HN
Department of Health,NHS Sheffield CCG,4/30/2020,C&M-PMS Prem Rates,PRC DELEGATED CO-COMMISSIONING,PORTER BROOK MEDICAL CENTRE,31798273,"2,658.80",PRC DELEGATED CO-COMMISSIONING,S11 8HN
Department of Health,NHS Sheffield CCG,4/30/2020,C&M-PMS Prem Water Rates,PRC DELEGATED CO-COMMISSIONING,PORTER BROOK MEDICAL CENTRE,31798273,278.43,PRC DELEGATED CO-COMMISSIONING,S11 8HN
Department of Health,NHS Sheffield CCG,4/30/2020,C&M-GMS IT Comm Servs -GP Practices,PRIMARY CARE IT,PRIMARY CARE MANAGEMENT DEVELOPMENT CENTRE,31900694,"28,440.00",PRIMARY CARE IT,NG6 0JU
Department of Health,NHS Sheffield CCG,4/30/2020,C&M-GMS PCN DES Clin Pharmacist,PRC DELEGATED CO-COMMISSIONING,PRIMARY CARE SHEFFIELD LTD,31760866,"300,000.00",PRC DELEGATED CO-COMMISSIONING,S9 4EU
Department of Health,NHS Sheffield CCG,4/30/2020,C&M-APMS DES Extended Hours Access,GP FORWARD VIEW,PRIMARY CARE SHEFFIELD LTD,31760879,"80,000.00",GP FORWARD VIEW,S9 4EU
Department of Health,NHS Sheffield CCG,4/30/2020,C&M-APMS DES Violent Patients,PRC DELEGATED CO-COMMISSIONING,PRIMARY CARE SHEFFIELD LTD,31776013,"32,000.00",PRC DELEGATED CO-COMMISSIONING,S9 4EU
Department of Health,NHS Sheffield CCG,4/30/2020,C&M-GMS IT Comm Servs -GP Practices,PRIMARY CARE IT,PRIMARY CARE SHEFFIELD LTD,31900547,"171,000.00",PRIMARY CARE IT,S9 4EU
Department of Health,NHS Sheffield CCG,4/30/2020,C&M-APMS LES Translation Fees,LOCAL ENHANCED SERVICES,PRIMARY CARE SHEFFIELD LTD,32030144,"53,000.00",LOCAL ENHANCED SERVICES,S9 4EU
Department of Health,NHS Sheffield CCG,4/30/2020,C&M-GMS LES Basket of Procedures,LOCAL ENHANCED SERVICES,PRIMARY CARE SHEFFIELD LTD,32030221,"52,308.33",LOCAL ENHANCED SERVICES,S9 4EU
Department of Health,NHS Sheffield CCG,4/30/2020,C&M-APMS LES Translation Fees,LOCAL ENHANCED SERVICES,PRIMARY CARE SHEFFIELD LTD,32030223,"-32,000.00",LOCAL ENHANCED SERVICES,S9 4EU
Department of Health,NHS Sheffield CCG,4/30/2020,C&M-OES Childrens Schemes,LOCAL ENHANCED SERVICES,PRIMARY EYECARE SERVICES LTD,31869989,925.00,LOCAL ENHANCED SERVICES,EC1R 0DG
Department of Health,NHS Sheffield CCG,4/30/2020,C&M-OES Glaucoma,LOCAL ENHANCED SERVICES,PRIMARY EYECARE SERVICES LTD,31869989,750.00,LOCAL ENHANCED SERVICES,EC1R 0DG
Department of Health,NHS Sheffield CCG,4/30/2020,C&M-OES Intra-ocular Ocular Hypertn,LOCAL ENHANCED SERVICES,PRIMARY EYECARE SERVICES LTD,31869989,200.00,LOCAL ENHANCED SERVICES,EC1R 0DG
Department of Health,NHS Sheffield CCG,4/30/2020,C&M-OES PEARS,LOCAL ENHANCED SERVICES,PRIMARY EYECARE SERVICES LTD,31869989,"23,304.00",LOCAL ENHANCED SERVICES,EC1R 0DG
Department of Health,NHS Sheffield CCG,4/30/2020,Clinical&Medical-Independent Sector,COMMISSIONING - NON ACUTE,REFUGEE COUNCIL,31760873,"40,000.00",COMMISSIONING - NON ACUTE,E15 4BQ
Department of Health,NHS Sheffield CCG,4/30/2020,C&M-PMS Contract Value,PRC DELEGATED CO-COMMISSIONING,RICHMOND MEDICAL CENTRE,31798275,"66,943.42",PRC DELEGATED CO-COMMISSIONING,S13 8NA
Department of Health,NHS Sheffield CCG,4/30/2020,C&M-PMS PCN DES Participation,PRC DELEGATED CO-COMMISSIONING,RICHMOND MEDICAL CENTRE,31798275,"1,271.70",PRC DELEGATED CO-COMMISSIONING,S13 8NA
Department of Health,NHS Sheffield CCG,4/30/2020,C&M-PMS Prem Notional Rent,PRC DELEGATED CO-COMMISSIONING,RICHMOND MEDICAL CENTRE,31798275,"4,731.00",PRC DELEGATED CO-COMMISSIONING,S13 8NA
Department of Health,NHS Sheffield CCG,4/30/2020,Cont Care-Funded Nursing Care Allow,FUNDED NURSING CARE,ROSEBERRY CARE CENTRES,31992360,"27,495.76",FNCSCHEDULEAPRIL,S5 6AB
Department of Health,NHS Sheffield CCG,4/30/2020,Cont Care-Physical Disab (<65),CHC ADULT FULLY FUNDED,ROSEBERRY CARE CENTRES,32003606,"41,847.74",CHC SCHEDULE APRIL2020,S35 2XF
Department of Health,NHS Sheffield CCG,4/30/2020,Cont Care-Physical Disab (<65),CHC ADULT FULLY FUNDED,ROSEBERRY CARE CENTRES,32003658,"38,634.17",CHC SCHEDULE APRIL2020,S35 2XF
Department of Health,NHS Sheffield CCG,4/30/2020,Hcare Srv Rec Fdtn Trust-Contract Baseline,MENTAL HEALTH CONTRACTS,ROTHERHAM DONCASTER AND SOUTH HUMBER NHS FOUNDATION TRUST,31848500,"37,808.66",MENTAL HEALTH CONTRACTS,DN4 8QN
Department of Health,NHS Sheffield CCG,4/30/2020,Hcare Srv Rec Fdtn Trust-Contract Baseline,ACUTE COMMISSIONING,ROTHERHAM NHS FOUNDATION TRUST,31848498,"618,988.29",ACUTE COMMISSIONING,S60 2UD
Department of Health,NHS Sheffield CCG,4/30/2020,Clinical&Medical-Serv Recd-F Trsts,BEREAVEMENT SERVICE,ROTHERHAM NHS FOUNDATION TRUST,31900553,"134,333.00",BEREAVEMENT SERVICE,S60 2UD
Department of Health,NHS Sheffield CCG,4/30/2020,Hcare Srv Rec Fdtn Trust-Contract Baseline,ACUTE COMMISSIONING,ROTHERHAM NHS FOUNDATION TRUST,32141809,"466,729.00",ACUTE COMMISSIONING,S60 2UD
Department of Health,NHS Sheffield CCG,4/30/2020,Hcare Srv Rec Fdtn Trust-Contract Baseline,ACUTE COMMISSIONING,ROTHERHAM NHS FOUNDATION TRUST,32142014,"-466,729.00",ACUTE COMMISSIONING,S60 2UD
Department of Health,NHS Sheffield CCG,4/30/2020,C&M-PMS Contract Value,PRC DELEGATED CO-COMMISSIONING,RUSTLINGS ROAD MEDICAL CENTRE,31798279,"28,206.33",PRC DELEGATED CO-COMMISSIONING,S11 7AB
Department of Health,NHS Sheffield CCG,4/30/2020,C&M-PMS PCN DES Participation,PRC DELEGATED CO-COMMISSIONING,RUSTLINGS ROAD MEDICAL CENTRE,31798279,527.62,PRC DELEGATED CO-COMMISSIONING,S11 7AB
Department of Health,NHS Sheffield CCG,4/30/2020,C&M-PMS Prem Notional Rent,PRC DELEGATED CO-COMMISSIONING,RUSTLINGS ROAD MEDICAL CENTRE,31798279,"1,312.50",PRC DELEGATED CO-COMMISSIONING,S11 7AB
Department of Health,NHS Sheffield CCG,4/30/2020,C&M-PMS Prem Water Rates,PRC DELEGATED CO-COMMISSIONING,RUSTLINGS ROAD MEDICAL CENTRE,31798279,67.07,PRC DELEGATED CO-COMMISSIONING,S11 7AB
Department of Health,NHS Sheffield CCG,4/30/2020,Cont Care-Physical Disab (<65),CHC ADULT FULLY FUNDED,SEVEN HILLS NURSING HOME,32003543,"42,891.07",CHC SCHEDULE APRIL2020,S11 9AA
Department of Health,NHS Sheffield CCG,4/30/2020,C&M-GMS Cost of Drugs -Prescribing,LOCAL ENHANCED SERVICES,SHARROW LANE MEDICAL CENTRE,32047380,523.38,LOCAL ENHANCED SERVICES,S11 8AN
Department of Health,NHS Sheffield CCG,4/30/2020,C&M-GMS Global Sum,PRC DELEGATED CO-COMMISSIONING,SHARROW LANE MEDICAL CENTRE,32047380,"24,622.08",PRC DELEGATED CO-COMMISSIONING,S11 8AN
Department of Health,NHS Sheffield CCG,4/30/2020,C&M-GMS PCN DES Participation,PRC DELEGATED CO-COMMISSIONING,SHARROW LANE MEDICAL CENTRE,32047380,481.39,PRC DELEGATED CO-COMMISSIONING,S11 8AN
Department of Health,NHS Sheffield CCG,4/30/2020,C&M-GMS PCO Other,PRC DELEGATED CO-COMMISSIONING,SHARROW LANE MEDICAL CENTRE,32047380,274.00,PRC DELEGATED CO-COMMISSIONING,S11 8AN
Department of Health,NHS Sheffield CCG,4/30/2020,C&M-GMS Prem Notional Rent,PRC DELEGATED CO-COMMISSIONING,SHARROW LANE MEDICAL CENTRE,32047380,"2,741.67",PRC DELEGATED CO-COMMISSIONING,S11 8AN
Department of Health,NHS Sheffield CCG,4/30/2020,C&M-GMS Prof Fees Prescribing,PRC DELEGATED CO-COMMISSIONING,SHARROW LANE MEDICAL CENTRE,32047380,78.62,PRC DELEGATED CO-COMMISSIONING,S11 8AN
Department of Health,NHS Sheffield CCG,4/30/2020,C&M-GMS QOF Aspiration,PRC DELEGATED CO-COMMISSIONING,SHARROW LANE MEDICAL CENTRE,32047380,"2,666.85",PRC DELEGATED CO-COMMISSIONING,S11 8AN
Department of Health,NHS Sheffield CCG,4/30/2020,Hcare Srv Rec Fdtn Trust-Non Contract,BEREAVEMENT SERVICE,SHEFFIELD CHILDRENS NHS FOUNDATION TRUST,31736909,"-750,000.00",https://nww.einvoice-prod.sbs.nhs.uk:8179/invoicepdf/fb93262f-0781-58ad-8ff1-079599492b5a,S10 2TH
Department of Health,NHS Sheffield CCG,4/30/2020,Hcare Srv Rec Fdtn Trust-Contract Baseline,ACUTE CHILDRENS SERVICES,SHEFFIELD CHILDRENS NHS FOUNDATION TRUST,31848495,"3,460,348.98",ACUTE CHILDRENS SERVICES,S10 2TH
Department of Health,NHS Sheffield CCG,4/30/2020,Hcare Srv Rec Fdtn Trust-Contract Baseline,MENTAL HEALTH CONTRACTS,SHEFFIELD HEALTH & SOCIAL CARE NHS FOUNDATION TRUST,31848496,"7,311,989.53",MENTAL HEALTH CONTRACTS,S10 3TH
Department of Health,NHS Sheffield CCG,4/30/2020,Hcare Srv Rec Fdtn Trust-Non Contract,MENTAL HEALTH CONTRACTS,SHEFFIELD HEALTH & SOCIAL CARE NHS FOUNDATION TRUST,31860385,"62,682.47",MENTAL HEALTH CONTRACTS,S10 3TH
Department of Health,NHS Sheffield CCG,4/30/2020,Hcare Srv Rec Fdtn Trust-Contract Baseline,MENTAL HEALTH CONTRACTS,SHEFFIELD HEALTH & SOCIAL CARE NHS FOUNDATION TRUST,31860388,"553,000.00",MENTAL HEALTH CONTRACTS,S10 3TH
Department of Health,NHS Sheffield CCG,4/30/2020,Hcare Srv Rec Fdtn Trust-Contract Baseline,MENTAL HEALTH CONTRACTS,SHEFFIELD HEALTH & SOCIAL CARE NHS FOUNDATION TRUST,31900606,"29,000.00",MENTAL HEALTH CONTRACTS,S10 3TH
Department of Health,NHS Sheffield CCG,4/30/2020,Cont Care-NHSFT-Adult 100% Funded,CHC ADULT FULLY FUNDED,SHEFFIELD HEALTH & SOCIAL CARE NHS FOUNDATION TRUST,31900626,"-70,220.00",CHC ADULT FULLY FUNDED,S10 3TH
Department of Health,NHS Sheffield CCG,4/30/2020,Other Research Exp,Nursing and Quality Programme,SHEFFIELD HEALTH & SOCIAL CARE NHS FOUNDATION TRUST,31958425,"42,956.95",Nursing and Quality Programme,S10 3TH
Department of Health,NHS Sheffield CCG,4/30/2020,Cont Care-NHSFT-Adult 100% Funded,CHC ADULT FULLY FUNDED,SHEFFIELD HEALTH & SOCIAL CARE NHS FOUNDATION TRUST,32123803,"27,693.00",CHC ADULT FULLY FUNDED,S10 3TH
Department of Health,NHS Sheffield CCG,4/30/2020,Miscellaneous Expenditure (L9),BEREAVEMENT SERVICE,SHEFFIELD LOCAL PHARMACEUTICAL COMMITTEE,31803384,"42,000.00",BEREAVEMENT SERVICE,S3 8HT
Department of Health,NHS Sheffield CCG,4/30/2020,Miscellaneous Expenditure (L9),BEREAVEMENT SERVICE,SHEFFIELD TEACHING HOSPITALS NHS FOUNDATION TRUST,31736846,"140,000.00",BEREAVEMENT SERVICE,S5 7AU
Department of Health,NHS Sheffield CCG,4/30/2020,Hcare Srv Rec Fdtn Trust-Non Contract,ACUTE COMMISSIONING,SHEFFIELD TEACHING HOSPITALS NHS FOUNDATION TRUST,31736848,"25,001.20",ACUTE COMMISSIONING,S5 7AU
Department of Health,NHS Sheffield CCG,4/30/2020,OVERSEAS NON EEA PATIENTS,OVERSEAS NON EEA PATIENTS,SHEFFIELD TEACHING HOSPITALS NHS FOUNDATION TRUST,31847943,"34,897.95",OVERSEAS NON EEA PATIENTS,S5 7AU
Department of Health,NHS Sheffield CCG,4/30/2020,Hcare Srv Rec Fdtn Trust-Non Contract,ACUTE COMMISSIONING,SHEFFIELD TEACHING HOSPITALS NHS FOUNDATION TRUST,31848497,"37,588,203.57",ACUTE COMMISSIONING,S5 7AU
Department of Health,NHS Sheffield CCG,4/30/2020,Hcare Srv Rec Fdtn Trust-Contract Baseline,ACUTE COMMISSIONING,SHEFFIELD TEACHING HOSPITALS NHS FOUNDATION TRUST,31849600,"220,111.00",ACUTE COMMISSIONING,S5 7AU
Department of Health,NHS Sheffield CCG,4/30/2020,Hcare Srv Rec Fdtn Trust-Contract Baseline,ACUTE COMMISSIONING,SHEFFIELD TEACHING HOSPITALS NHS FOUNDATION TRUST,31849602,"2,770,404.00",ACUTE COMMISSIONING,S5 7AU
Department of Health,NHS Sheffield CCG,4/30/2020,Hcare Srv Rec Fdtn Trust-Non Contract,LONG TERM CONDITIONS,SHEFFIELD TEACHING HOSPITALS NHS FOUNDATION TRUST,31849658,"169,000.00",LONG TERM CONDITIONS,S5 7AU
Department of Health,NHS Sheffield CCG,4/30/2020,C&M-GMS LES Travelling Families,LOCAL ENHANCED SERVICES,SHEFFIELD TEACHING HOSPITALS NHS FOUNDATION TRUST,31860382,"50,100.00",LOCAL ENHANCED SERVICES,S5 7AU
Department of Health,NHS Sheffield CCG,4/30/2020,Clinical&Medical-Serv Recd-F Trsts,BEREAVEMENT SERVICE,SHEFFIELD TEACHING HOSPITALS NHS FOUNDATION TRUST,31868930,"44,655.00",BEREAVEMENT SERVICE,S5 7AU
Department of Health,NHS Sheffield CCG,4/30/2020,Clinical&Medical-Serv Recd-F Trsts,BEREAVEMENT SERVICE,SHEFFIELD TEACHING HOSPITALS NHS FOUNDATION TRUST,31868973,"52,574.32",BEREAVEMENT SERVICE,S5 7AU
Department of Health,NHS Sheffield CCG,4/30/2020,Hcare Srv Rec Fdtn Trust-Non Contract,ACUTE COMMISSIONING,SHEFFIELD TEACHING HOSPITALS NHS FOUNDATION TRUST,31900644,"33,368.00",ACUTE COMMISSIONING,S5 7AU
Department of Health,NHS Sheffield CCG,4/30/2020,Clinical&Medical-Serv Recd-F Trsts,CLINICAL LEADS,SHEFFIELD TEACHING HOSPITALS NHS FOUNDATION TRUST,31936664,"40,000.00",Cancer Alliance - FIT evaluation funding to STHFT,S5 7AU
Department of Health,NHS Sheffield CCG,4/30/2020,Clinical&Medical-Serv Recd-F Trsts,CLINICAL LEADS,SHEFFIELD TEACHING HOSPITALS NHS FOUNDATION TRUST,31936665,"30,000.00",Cancer Alliance - £30k funding for STHFT Surveillance (Polyp),S5 7AU
Department of Health,NHS Sheffield CCG,4/30/2020,Hcare Srv Rec Fdtn Trust-Drugs,HOSPICES,SHEFFIELD TEACHING HOSPITALS NHS FOUNDATION TRUST,31958469,"-39,376.50",HOSPICES,S5 7AU
Department of Health,NHS Sheffield CCG,4/30/2020,Hcare Srv Rec Fdtn Trust-Non Contract,LONG TERM CONDITIONS,SHEFFIELD TEACHING HOSPITALS NHS FOUNDATION TRUST,31984690,"80,000.00",LONG TERM CONDITIONS,S5 7AU
Department of Health,NHS Sheffield CCG,4/30/2020,OVERSEAS NON EEA PATIENTS,OVERSEAS NON EEA PATIENTS,SHEFFIELD TEACHING HOSPITALS NHS FOUNDATION TRUST,31986369,"36,913.00",OVERSEAS NON EEA PATIENTS,S5 7AU
Department of Health,NHS Sheffield CCG,4/30/2020,Clinical&Medical-Serv Recd-F Trsts,BEREAVEMENT SERVICE,SHEFFIELD TEACHING HOSPITALS NHS FOUNDATION TRUST,31986445,"105,000.00",BEREAVEMENT SERVICE,S5 7AU
Department of Health,NHS Sheffield CCG,4/30/2020,Miscellaneous Expenditure (L9),BEREAVEMENT SERVICE,SHEFFIELD TEACHING HOSPITALS NHS FOUNDATION TRUST,31986445,664.86,BEREAVEMENT SERVICE,S5 7AU
Department of Health,NHS Sheffield CCG,4/30/2020,Oth Travel Costs-Car Mileage,BEREAVEMENT SERVICE,SHEFFIELD TEACHING HOSPITALS NHS FOUNDATION TRUST,31986445,202.39,BEREAVEMENT SERVICE,S5 7AU
Department of Health,NHS Sheffield CCG,4/30/2020,Oth Travel Costs-Car Mileage,REABLEMENT,SHEFFIELD TEACHING HOSPITALS NHS FOUNDATION TRUST,31986445,464.40,REABLEMENT,S5 7AU
Department of Health,NHS Sheffield CCG,4/30/2020,Seconded-Basic Sal-Staff fm oth org,BEREAVEMENT SERVICE,SHEFFIELD TEACHING HOSPITALS NHS FOUNDATION TRUST,31986445,"129,742.02",BEREAVEMENT SERVICE,S5 7AU
Department of Health,NHS Sheffield CCG,4/30/2020,Seconded-Basic Sal-Staff fm oth org,REABLEMENT,SHEFFIELD TEACHING HOSPITALS NHS FOUNDATION TRUST,31986445,"3,230.05",REABLEMENT,S5 7AU
Department of Health,NHS Sheffield CCG,4/30/2020,Seconded-Employer's NHI Costs,BEREAVEMENT SERVICE,SHEFFIELD TEACHING HOSPITALS NHS FOUNDATION TRUST,31986445,"16,187.94",BEREAVEMENT SERVICE,S5 7AU
Department of Health,NHS Sheffield CCG,4/30/2020,Seconded-Employer's NHI Costs,REABLEMENT,SHEFFIELD TEACHING HOSPITALS NHS FOUNDATION TRUST,31986445,347.30,REABLEMENT,S5 7AU
Department of Health,NHS Sheffield CCG,4/30/2020,Hcare Srv Rec Fdtn Trust-Non Contract,LONG TERM CONDITIONS,SHEFFIELD TEACHING HOSPITALS NHS FOUNDATION TRUST,31986500,"-50,000.00",LONG TERM CONDITIONS,S5 7AU
Department of Health,NHS Sheffield CCG,4/30/2020,Hcare Srv Rec Fdtn Trust-Drugs,HOSPICES,SHEFFIELD TEACHING HOSPITALS NHS FOUNDATION TRUST,32054092,"50,547.78",HOSPICES,S5 7AU
Department of Health,NHS Sheffield CCG,4/30/2020,Hcare Srv Rec Fdtn Trust-Contract Baseline,ACUTE COMMISSIONING,SHEFFIELD TEACHING HOSPITALS NHS FOUNDATION TRUST,32124230,"2,633,000.00",ACUTE COMMISSIONING,S5 7AU
Department of Health,NHS Sheffield CCG,4/30/2020,C&M-GMS Cost of Drugs -Prescribing,LOCAL ENHANCED SERVICES,SHIREGREEN MEDICAL CENTRE,32047388,"1,587.81",LOCAL ENHANCED SERVICES,S5 0RG
Department of Health,NHS Sheffield CCG,4/30/2020,C&M-GMS Global Sum,PRC DELEGATED CO-COMMISSIONING,SHIREGREEN MEDICAL CENTRE,32047388,"60,103.03",PRC DELEGATED CO-COMMISSIONING,S5 0RG
Department of Health,NHS Sheffield CCG,4/30/2020,C&M-GMS PCN DES Participation,PRC DELEGATED CO-COMMISSIONING,SHIREGREEN MEDICAL CENTRE,32047388,"1,217.78",PRC DELEGATED CO-COMMISSIONING,S5 0RG
Department of Health,NHS Sheffield CCG,4/30/2020,C&M-GMS Prem Cost Rent,PRC DELEGATED CO-COMMISSIONING,SHIREGREEN MEDICAL CENTRE,32047388,"1,792.33",PRC DELEGATED CO-COMMISSIONING,S5 0RG
Department of Health,NHS Sheffield CCG,4/30/2020,C&M-GMS Prem Notional Rent,PRC DELEGATED CO-COMMISSIONING,SHIREGREEN MEDICAL CENTRE,32047388,"5,375.00",PRC DELEGATED CO-COMMISSIONING,S5 0RG
Department of Health,NHS Sheffield CCG,4/30/2020,C&M-GMS Prof Fees Prescribing,PRC DELEGATED CO-COMMISSIONING,SHIREGREEN MEDICAL CENTRE,32047388,219.32,PRC DELEGATED CO-COMMISSIONING,S5 0RG
Department of Health,NHS Sheffield CCG,4/30/2020,C&M-GMS QOF Aspiration,PRC DELEGATED CO-COMMISSIONING,SHIREGREEN MEDICAL CENTRE,32047388,"6,849.89",PRC DELEGATED CO-COMMISSIONING,S5 0RG
Department of Health,NHS Sheffield CCG,4/30/2020,C&M-PMS Contract Value,PRC DELEGATED CO-COMMISSIONING,SLOAN MEDICAL CENTRE,31798281,"96,050.33",PRC DELEGATED CO-COMMISSIONING,S8 0YH
Department of Health,NHS Sheffield CCG,4/30/2020,C&M-PMS PCN DES Participation,PRC DELEGATED CO-COMMISSIONING,SLOAN MEDICAL CENTRE,31798281,"1,809.97",PRC DELEGATED CO-COMMISSIONING,S8 0YH
Department of Health,NHS Sheffield CCG,4/30/2020,C&M-PMS PCO Locum Sickness,PRC DELEGATED CO-COMMISSIONING,SLOAN MEDICAL CENTRE,31798281,"6,828.56",PRC DELEGATED CO-COMMISSIONING,S8 0YH
Department of Health,NHS Sheffield CCG,4/30/2020,C&M-PMS Prem Actual Rent,PRC DELEGATED CO-COMMISSIONING,SLOAN MEDICAL CENTRE,31798281,"15,970.83",PRC DELEGATED CO-COMMISSIONING,S8 0YH
Department of Health,NHS Sheffield CCG,4/30/2020,C&M-PMS Prem Notional Rent,PRC DELEGATED CO-COMMISSIONING,SLOAN MEDICAL CENTRE,31798281,747.50,PRC DELEGATED CO-COMMISSIONING,S8 0YH
Department of Health,NHS Sheffield CCG,4/30/2020,C&M-PMS Prem Rates,PRC DELEGATED CO-COMMISSIONING,SLOAN MEDICAL CENTRE,31798281,"3,482.75",PRC DELEGATED CO-COMMISSIONING,S8 0YH
Department of Health,NHS Sheffield CCG,4/30/2020,C&M-PMS Contract Value,PRC DELEGATED CO-COMMISSIONING,SOTHALL MEDICAL CENTRE,31798282,"71,243.33",PRC DELEGATED CO-COMMISSIONING,S20 1HQ
Department of Health,NHS Sheffield CCG,4/30/2020,C&M-PMS PCN DES Participation,PRC DELEGATED CO-COMMISSIONING,SOTHALL MEDICAL CENTRE,31798282,"1,351.91",PRC DELEGATED CO-COMMISSIONING,S20 1HQ
Department of Health,NHS Sheffield CCG,4/30/2020,C&M-PMS Prem Notional Rent,PRC DELEGATED CO-COMMISSIONING,SOTHALL MEDICAL CENTRE,31798282,"5,116.67",PRC DELEGATED CO-COMMISSIONING,S20 1HQ
Department of Health,NHS Sheffield CCG,4/30/2020,C&M-PMS Prem Water Rates,PRC DELEGATED CO-COMMISSIONING,SOTHALL MEDICAL CENTRE,31798282,211.63,PRC DELEGATED CO-COMMISSIONING,S20 1HQ
Department of Health,NHS Sheffield CCG,4/30/2020,Clinical&Medical-Voluntary Sector,COLLABORATIVE COMMISSIONING,SOUTH YORKSHIRE HOUSING ASSOCIATION LTD,31868939,"338,260.58",COLLABORATIVE COMMISSIONING,S1 4EB
Department of Health,NHS Sheffield CCG,4/30/2020,Cont Care-Mental Health (65+),CHC ADULT FULLY FUNDED,SOUTH YORKSHIRE HOUSING ASSOCIATION LTD,31986248,"105,926.00",CHC ADULT FULLY FUNDED,S1 4HF
Department of Health,NHS Sheffield CCG,4/30/2020,Cont Care-Physical Disab (<65),CHC ADULT FULLY FUNDED,SOUTH YORKSHIRE HOUSING ASSOCIATION LTD,32003440,"79,986.69",CHC SCHEDULE APRIL2020,S35 1RQ
Department of Health,NHS Sheffield CCG,4/30/2020,C&M-PMS Contract Value,PRC DELEGATED CO-COMMISSIONING,SOUTHEY GREEN MEDICAL CENTRE,31798284,"25,158.17",PRC DELEGATED CO-COMMISSIONING,S5 7QB
Department of Health,NHS Sheffield CCG,4/30/2020,C&M-PMS PCN DES Participation,PRC DELEGATED CO-COMMISSIONING,SOUTHEY GREEN MEDICAL CENTRE,31798284,475.68,PRC DELEGATED CO-COMMISSIONING,S5 7QB
Department of Health,NHS Sheffield CCG,4/30/2020,C&M-PMS Prem Notional Rent,PRC DELEGATED CO-COMMISSIONING,SOUTHEY GREEN MEDICAL CENTRE,31798284,"3,362.50",PRC DELEGATED CO-COMMISSIONING,S5 7QB
Department of Health,NHS Sheffield CCG,4/30/2020,Clinical&Medical-Independent Sector,ACUTE COMMISSIONING,SPAMEDICA LTD,32030207,"106,825.32",https://nww.einvoice-prod.sbs.nhs.uk:8179/invoicepdf/03f4e993-1afa-5c44-900f-49a21f573084,M15 4SQ
Department of Health,NHS Sheffield CCG,4/30/2020,Clinical&Medical-Voluntary Sector,QUALITY PREMIUM PROGRAMME,ST LUKES HOSPICE,31986227,"38,646.99",QUALITY PREMIUM PROGRAMME,S11 9NE
Department of Health,NHS Sheffield CCG,4/30/2020,C&M-GMS Cost of Drugs -Prescribing,LOCAL ENHANCED SERVICES,STANNINGTON MEDICAL CENTRE,32047392,587.88,LOCAL ENHANCED SERVICES,S6 6BX
Department of Health,NHS Sheffield CCG,4/30/2020,C&M-GMS Global Sum,PRC DELEGATED CO-COMMISSIONING,STANNINGTON MEDICAL CENTRE,32047392,"27,002.78",PRC DELEGATED CO-COMMISSIONING,S6 6BX
Department of Health,NHS Sheffield CCG,4/30/2020,C&M-GMS Prem Notional Rent,PRC DELEGATED CO-COMMISSIONING,STANNINGTON MEDICAL CENTRE,32047392,"2,575.00",PRC DELEGATED CO-COMMISSIONING,S6 6BX
Department of Health,NHS Sheffield CCG,4/30/2020,C&M-GMS Prem Water Rates,PRC DELEGATED CO-COMMISSIONING,STANNINGTON MEDICAL CENTRE,32047392,168.00,PRC DELEGATED CO-COMMISSIONING,S6 6BX
Department of Health,NHS Sheffield CCG,4/30/2020,C&M-GMS Prof Fees Prescribing,PRC DELEGATED CO-COMMISSIONING,STANNINGTON MEDICAL CENTRE,32047392,70.35,PRC DELEGATED CO-COMMISSIONING,S6 6BX
Department of Health,NHS Sheffield CCG,4/30/2020,C&M-GMS QOF Aspiration,PRC DELEGATED CO-COMMISSIONING,STANNINGTON MEDICAL CENTRE,32047392,"2,881.70",PRC DELEGATED CO-COMMISSIONING,S6 6BX
Department of Health,NHS Sheffield CCG,4/30/2020,C&M-GMS Global Sum,PRC DELEGATED CO-COMMISSIONING,STONECROFT MEDICAL CENTRE,32047390,"33,839.53",PRC DELEGATED CO-COMMISSIONING,S12 2LJ
Department of Health,NHS Sheffield CCG,4/30/2020,C&M-GMS PCN DES Participation,PRC DELEGATED CO-COMMISSIONING,STONECROFT MEDICAL CENTRE,32047390,657.55,PRC DELEGATED CO-COMMISSIONING,S12 2LJ
Department of Health,NHS Sheffield CCG,4/30/2020,C&M-GMS Prem Notional Rent,PRC DELEGATED CO-COMMISSIONING,STONECROFT MEDICAL CENTRE,32047390,"2,808.33",PRC DELEGATED CO-COMMISSIONING,S12 2LJ
Department of Health,NHS Sheffield CCG,4/30/2020,C&M-GMS Prem Rates,PRC DELEGATED CO-COMMISSIONING,STONECROFT MEDICAL CENTRE,32047390,"1,235.25",PRC DELEGATED CO-COMMISSIONING,S12 2LJ
Department of Health,NHS Sheffield CCG,4/30/2020,C&M-GMS QOF Aspiration,PRC DELEGATED CO-COMMISSIONING,STONECROFT MEDICAL CENTRE,32047390,"4,228.40",PRC DELEGATED CO-COMMISSIONING,S12 2LJ
Department of Health,NHS Sheffield CCG,4/30/2020,Miscellaneous Expenditure (L9),HUMAN RESOURCES,TICE SEMINARS LTD T/A THE PACIFIC INSTITUTE,31986626,"59,850.00",HUMAN RESOURCES,W2 6BD
Department of Health,NHS Sheffield CCG,4/30/2020,C&M-GMS Global Sum,PRC DELEGATED CO-COMMISSIONING,TOTLEY RISE MEDICAL CENTRE,32047394,"27,189.02",PRC DELEGATED CO-COMMISSIONING,S17 4DQ
Department of Health,NHS Sheffield CCG,4/30/2020,C&M-GMS PCN DES Participation,PRC DELEGATED CO-COMMISSIONING,TOTLEY RISE MEDICAL CENTRE,32047394,504.35,PRC DELEGATED CO-COMMISSIONING,S17 4DQ
Department of Health,NHS Sheffield CCG,4/30/2020,C&M-GMS Prem Notional Rent,PRC DELEGATED CO-COMMISSIONING,TOTLEY RISE MEDICAL CENTRE,32047394,"1,604.17",PRC DELEGATED CO-COMMISSIONING,S17 4DQ
Department of Health,NHS Sheffield CCG,4/30/2020,C&M-GMS QOF Aspiration,PRC DELEGATED CO-COMMISSIONING,TOTLEY RISE MEDICAL CENTRE,32047394,"2,304.18",PRC DELEGATED CO-COMMISSIONING,S17 4DQ
Department of Health,NHS Sheffield CCG,4/30/2020,C&M-GMS Cost of Drugs -Prescribing,LOCAL ENHANCED SERVICES,TRAMWAYS MEDICAL CENTRE,32047396,"2,133.62",LOCAL ENHANCED SERVICES,S6 4JQ
Department of Health,NHS Sheffield CCG,4/30/2020,C&M-GMS Global Sum,PRC DELEGATED CO-COMMISSIONING,TRAMWAYS MEDICAL CENTRE,32047396,"63,609.35",PRC DELEGATED CO-COMMISSIONING,S6 4JQ
Department of Health,NHS Sheffield CCG,4/30/2020,C&M-GMS PCN DES Participation,PRC DELEGATED CO-COMMISSIONING,TRAMWAYS MEDICAL CENTRE,32047396,"1,263.94",PRC DELEGATED CO-COMMISSIONING,S6 4JQ
Department of Health,NHS Sheffield CCG,4/30/2020,C&M-GMS Prem Cost Rent,PRC DELEGATED CO-COMMISSIONING,TRAMWAYS MEDICAL CENTRE,32047396,"4,012.75",PRC DELEGATED CO-COMMISSIONING,S6 4JQ
Department of Health,NHS Sheffield CCG,4/30/2020,C&M-GMS Prem Rates,PRC DELEGATED CO-COMMISSIONING,TRAMWAYS MEDICAL CENTRE,32047396,"1,308.75",PRC DELEGATED CO-COMMISSIONING,S6 4JQ
Department of Health,NHS Sheffield CCG,4/30/2020,C&M-GMS Prem Water Rates,PRC DELEGATED CO-COMMISSIONING,TRAMWAYS MEDICAL CENTRE,32047396,270.62,PRC DELEGATED CO-COMMISSIONING,S6 4JQ
Department of Health,NHS Sheffield CCG,4/30/2020,C&M-GMS Prof Fees Prescribing,PRC DELEGATED CO-COMMISSIONING,TRAMWAYS MEDICAL CENTRE,32047396,225.52,PRC DELEGATED CO-COMMISSIONING,S6 4JQ
Department of Health,NHS Sheffield CCG,4/30/2020,C&M-GMS QOF Aspiration,PRC DELEGATED CO-COMMISSIONING,TRAMWAYS MEDICAL CENTRE,32047396,"5,645.42",PRC DELEGATED CO-COMMISSIONING,S6 4JQ
Department of Health,NHS Sheffield CCG,4/30/2020,Hcare Srv Rec NHS Trust-Contract Baseline,ACUTE COMMISSIONING,UNITED LINCOLNSHIRE HOSPITALS NHS TRUST,31848499,"27,985.26",ACUTE COMMISSIONING,LN2 5QY
Department of Health,NHS Sheffield CCG,4/30/2020,C&M-GMS LES Equitable Funding,LOCAL ENHANCED SERVICES,UNIVERSITY HEALTH SERVICE,31732445,"29,132.00",EQUITABLEFUNDQ4 201920,S3 7QP
Department of Health,NHS Sheffield CCG,4/30/2020,C&M-PMS Contract Value,PRC DELEGATED CO-COMMISSIONING,UNIVERSITY HEALTH SERVICE,31798288,"197,795.00",PRC DELEGATED CO-COMMISSIONING,S3 7QP
Department of Health,NHS Sheffield CCG,4/30/2020,C&M-PMS DES Extended Hours Access,PRC DELEGATED CO-COMMISSIONING,UNIVERSITY HEALTH SERVICE,31798288,"4,929.28",PRC DELEGATED CO-COMMISSIONING,S3 7QP
Department of Health,NHS Sheffield CCG,4/30/2020,C&M-PMS PCN DES Clinical Director,PRC DELEGATED CO-COMMISSIONING,UNIVERSITY HEALTH SERVICE,31798288,"2,454.44",PRC DELEGATED CO-COMMISSIONING,S3 7QP
Department of Health,NHS Sheffield CCG,4/30/2020,C&M-PMS PCN DES PCN support,LOCAL ENHANCED SERVICES,UNIVERSITY HEALTH SERVICE,31798288,"5,099.25",LOCAL ENHANCED SERVICES,S3 7QP
Department of Health,NHS Sheffield CCG,4/30/2020,C&M-PMS PCN DES Participation,PRC DELEGATED CO-COMMISSIONING,UNIVERSITY HEALTH SERVICE,31798288,"3,535.52",PRC DELEGATED CO-COMMISSIONING,S3 7QP
Department of Health,NHS Sheffield CCG,4/30/2020,C&M-PMS Prem Notional Rent,PRC DELEGATED CO-COMMISSIONING,UNIVERSITY HEALTH SERVICE,31798288,"15,833.33",PRC DELEGATED CO-COMMISSIONING,S3 7QP
Department of Health,NHS Sheffield CCG,4/30/2020,Other Research Exp,Nursing and Quality Programme,UNIVERSITY OF SHEFFIELD,31860360,"25,430.00",Nursing and Quality Programme,S10 2TN
Department of Health,NHS Sheffield CCG,4/30/2020,C&M-GMS Cost of Drugs -Prescribing,LOCAL ENHANCED SERVICES,UPPERTHORPE MEDICAL CENTRE,32047399,"2,313.31",LOCAL ENHANCED SERVICES,S6 3FT
Department of Health,NHS Sheffield CCG,4/30/2020,C&M-GMS Global Sum,PRC DELEGATED CO-COMMISSIONING,UPPERTHORPE MEDICAL CENTRE,32047399,"89,134.49",PRC DELEGATED CO-COMMISSIONING,S6 3FT
Department of Health,NHS Sheffield CCG,4/30/2020,C&M-GMS PCN DES Participation,PRC DELEGATED CO-COMMISSIONING,UPPERTHORPE MEDICAL CENTRE,32047399,"1,681.95",PRC DELEGATED CO-COMMISSIONING,S6 3FT
Department of Health,NHS Sheffield CCG,4/30/2020,C&M-GMS PCO Locum Sickness,PRC DELEGATED CO-COMMISSIONING,UPPERTHORPE MEDICAL CENTRE,32047399,"6,239.69",PRC DELEGATED CO-COMMISSIONING,S6 3FT
Department of Health,NHS Sheffield CCG,4/30/2020,C&M-GMS Prem Notional Rent,PRC DELEGATED CO-COMMISSIONING,UPPERTHORPE MEDICAL CENTRE,32047399,"2,547.83",PRC DELEGATED CO-COMMISSIONING,S6 3FT
Department of Health,NHS Sheffield CCG,4/30/2020,C&M-GMS Prem Rates,PRC DELEGATED CO-COMMISSIONING,UPPERTHORPE MEDICAL CENTRE,32047399,"2,617.50",PRC DELEGATED CO-COMMISSIONING,S6 3FT
Department of Health,NHS Sheffield CCG,4/30/2020,C&M-GMS Prem Water Rates,PRC DELEGATED CO-COMMISSIONING,UPPERTHORPE MEDICAL CENTRE,32047399,350.28,PRC DELEGATED CO-COMMISSIONING,S6 3FT
Department of Health,NHS Sheffield CCG,4/30/2020,C&M-GMS Prof Fees Prescribing,PRC DELEGATED CO-COMMISSIONING,UPPERTHORPE MEDICAL CENTRE,32047399,293.80,PRC DELEGATED CO-COMMISSIONING,S6 3FT
Department of Health,NHS Sheffield CCG,4/30/2020,C&M-GMS QOF Aspiration,PRC DELEGATED CO-COMMISSIONING,UPPERTHORPE MEDICAL CENTRE,32047399,"9,072.83",PRC DELEGATED CO-COMMISSIONING,S6 3FT
Department of Health,NHS Sheffield CCG,4/30/2020,C&M-PMS Contract Value,PRC DELEGATED CO-COMMISSIONING,UPWELL STREET SURGERY,31798290,"36,353.83",PRC DELEGATED CO-COMMISSIONING,S4 8AN
Department of Health,NHS Sheffield CCG,4/30/2020,C&M-PMS PCN DES Participation,PRC DELEGATED CO-COMMISSIONING,UPWELL STREET SURGERY,31798290,713.41,PRC DELEGATED CO-COMMISSIONING,S4 8AN
Department of Health,NHS Sheffield CCG,4/30/2020,C&M-PMS PCO Locum Sickness,PRC DELEGATED CO-COMMISSIONING,UPWELL STREET SURGERY,31798290,"3,726.84",PRC DELEGATED CO-COMMISSIONING,S4 8AN
Department of Health,NHS Sheffield CCG,4/30/2020,C&M-PMS Prem Notional Rent,PRC DELEGATED CO-COMMISSIONING,UPWELL STREET SURGERY,31798290,"8,137.50",PRC DELEGATED CO-COMMISSIONING,S4 8AN
Department of Health,NHS Sheffield CCG,4/30/2020,C&M-PMS Contract Value,PRC DELEGATED CO-COMMISSIONING,VALLEY MEDICAL CENTRE,31798292,"78,985.17",PRC DELEGATED CO-COMMISSIONING,S36 1BX
Department of Health,NHS Sheffield CCG,4/30/2020,C&M-PMS DES Extended Hours Access,PRC DELEGATED CO-COMMISSIONING,VALLEY MEDICAL CENTRE,31798292,"2,507.53",PRC DELEGATED CO-COMMISSIONING,S36 1BX
Department of Health,NHS Sheffield CCG,4/30/2020,C&M-PMS PCN DES Clinical Director,PRC DELEGATED CO-COMMISSIONING,VALLEY MEDICAL CENTRE,31798292,"1,248.58",PRC DELEGATED CO-COMMISSIONING,S36 1BX
Department of Health,NHS Sheffield CCG,4/30/2020,C&M-PMS PCN DES PCN support,LOCAL ENHANCED SERVICES,VALLEY MEDICAL CENTRE,31798292,"2,594.00",LOCAL ENHANCED SERVICES,S36 1BX
Department of Health,NHS Sheffield CCG,4/30/2020,C&M-PMS PCN DES Participation,PRC DELEGATED CO-COMMISSIONING,VALLEY MEDICAL CENTRE,31798292,"1,492.89",PRC DELEGATED CO-COMMISSIONING,S36 1BX
Department of Health,NHS Sheffield CCG,4/30/2020,C&M-PMS Prem Rates,PRC DELEGATED CO-COMMISSIONING,VALLEY MEDICAL CENTRE,31798292,"1,783.25",PRC DELEGATED CO-COMMISSIONING,S36 1BX
Department of Health,NHS Sheffield CCG,4/30/2020,Cont Care-Physical Disab (<65),CHC ADULT FULLY FUNDED,VALORUM CARE LTD,32003683,"63,348.72",CHC SCHEDULE APRIL2020,LS19 7RW
Department of Health,NHS Sheffield CCG,4/30/2020,Clinical&Medical-Voluntary Sector,MENTAL HEALTH SERVICES - OTHER,VOLUNTARY ACTION SHEFFIELD,32102481,"45,000.00",MENTAL HEALTH SERVICES - OTHER,S1 4FW
Department of Health,NHS Sheffield CCG,4/30/2020,C&M-GMS Cost of Drugs -Prescribing,LOCAL ENHANCED SERVICES,WALKLEY HOUSE MEDICAL CENTRE,32047405,"1,510.02",LOCAL ENHANCED SERVICES,S6 3TN
Department of Health,NHS Sheffield CCG,4/30/2020,C&M-GMS Global Sum,PRC DELEGATED CO-COMMISSIONING,WALKLEY HOUSE MEDICAL CENTRE,32047405,"89,977.59",PRC DELEGATED CO-COMMISSIONING,S6 3TN
Department of Health,NHS Sheffield CCG,4/30/2020,C&M-GMS PCN DES Participation,PRC DELEGATED CO-COMMISSIONING,WALKLEY HOUSE MEDICAL CENTRE,32047405,"1,749.49",PRC DELEGATED CO-COMMISSIONING,S6 3TN
Department of Health,NHS Sheffield CCG,4/30/2020,C&M-GMS Prem Notional Rent,PRC DELEGATED CO-COMMISSIONING,WALKLEY HOUSE MEDICAL CENTRE,32047405,"5,635.50",PRC DELEGATED CO-COMMISSIONING,S6 3TN
Department of Health,NHS Sheffield CCG,4/30/2020,C&M-GMS Prof Fees Prescribing,PRC DELEGATED CO-COMMISSIONING,WALKLEY HOUSE MEDICAL CENTRE,32047405,202.77,PRC DELEGATED CO-COMMISSIONING,S6 3TN
Department of Health,NHS Sheffield CCG,4/30/2020,C&M-GMS QOF Aspiration,PRC DELEGATED CO-COMMISSIONING,WALKLEY HOUSE MEDICAL CENTRE,32047405,"8,602.90",PRC DELEGATED CO-COMMISSIONING,S6 3TN
Department of Health,NHS Sheffield CCG,4/30/2020,C&M-GMS Cost of Drugs -Prescribing,LOCAL ENHANCED SERVICES,WHITE HOUSE SURGERY SHEFFIELD,32047403,"1,542.88",LOCAL ENHANCED SERVICES,S2 1SL
Department of Health,NHS Sheffield CCG,4/30/2020,C&M-GMS Global Sum,PRC DELEGATED CO-COMMISSIONING,WHITE HOUSE SURGERY SHEFFIELD,32047403,"54,365.99",PRC DELEGATED CO-COMMISSIONING,S2 1SL
Department of Health,NHS Sheffield CCG,4/30/2020,C&M-GMS PCN DES Participation,PRC DELEGATED CO-COMMISSIONING,WHITE HOUSE SURGERY SHEFFIELD,32047403,"1,038.45",PRC DELEGATED CO-COMMISSIONING,S2 1SL
Department of Health,NHS Sheffield CCG,4/30/2020,C&M-GMS Prem Notional Rent,PRC DELEGATED CO-COMMISSIONING,WHITE HOUSE SURGERY SHEFFIELD,32047403,"9,412.50",PRC DELEGATED CO-COMMISSIONING,S2 1SL
Department of Health,NHS Sheffield CCG,4/30/2020,C&M-GMS Prem Rates,PRC DELEGATED CO-COMMISSIONING,WHITE HOUSE SURGERY SHEFFIELD,32047403,"2,478.25",PRC DELEGATED CO-COMMISSIONING,S2 1SL
Department of Health,NHS Sheffield CCG,4/30/2020,C&M-GMS Prem Water Rates,PRC DELEGATED CO-COMMISSIONING,WHITE HOUSE SURGERY SHEFFIELD,32047403,242.17,PRC DELEGATED CO-COMMISSIONING,S2 1SL
Department of Health,NHS Sheffield CCG,4/30/2020,C&M-GMS Prof Fees Prescribing,PRC DELEGATED CO-COMMISSIONING,WHITE HOUSE SURGERY SHEFFIELD,32047403,370.35,PRC DELEGATED CO-COMMISSIONING,S2 1SL
Department of Health,NHS Sheffield CCG,4/30/2020,C&M-GMS QOF Aspiration,PRC DELEGATED CO-COMMISSIONING,WHITE HOUSE SURGERY SHEFFIELD,32047403,"6,233.52",PRC DELEGATED CO-COMMISSIONING,S2 1SL
Department of Health,NHS Sheffield CCG,4/30/2020,Cont Care- Prior Year Payments,CHC ADULT FULLY FUNDED,WILLOWBECK HEALTH CARE LTD,32003254,"30,369.42",CHC SCHEDULE APRIL 2020PY,S4 8AR
Department of Health,NHS Sheffield CCG,4/30/2020,Cont Care-Physical Disab (<65),CHC ADULT FULLY FUNDED,WILLOWBECK HEALTH CARE LTD,32003584,"132,978.64",CHC SCHEDULE APRIL2020,S4 8AR
Department of Health,NHS Sheffield CCG,4/30/2020,C&M-PMS Contract Value,PRC DELEGATED CO-COMMISSIONING,WINCOBANK MEDICAL CENTRE,31798296,"62,603.83",PRC DELEGATED CO-COMMISSIONING,S9 1DJ
Department of Health,NHS Sheffield CCG,4/30/2020,C&M-PMS PCN DES Participation,PRC DELEGATED CO-COMMISSIONING,WINCOBANK MEDICAL CENTRE,31798296,"1,179.69",PRC DELEGATED CO-COMMISSIONING,S9 1DJ
Department of Health,NHS Sheffield CCG,4/30/2020,C&M-PMS Prem Healthcentre Rent,PRC DELEGATED CO-COMMISSIONING,WINCOBANK MEDICAL CENTRE,31798296,"45,121.79",PRC DELEGATED CO-COMMISSIONING,S9 1DJ
Department of Health,NHS Sheffield CCG,4/30/2020,C&M-PMS GP Statutory Levy,PRC DELEGATED CO-COMMISSIONING,WOODHOUSE HEALTH CENTRE,31798293,-430.08,PRC DELEGATED CO-COMMISSIONING,S13 7LY
Department of Health,NHS Sheffield CCG,4/30/2020,C&M-PMS Out of Hours Opt Outs,PRC DELEGATED CO-COMMISSIONING,WOODHOUSE HEALTH CENTRE,31798293,"-4,705.92",PRC DELEGATED CO-COMMISSIONING,S13 7LY
Department of Health,NHS Sheffield CCG,4/30/2020,C&M-PMS Contract Value,PRC DELEGATED CO-COMMISSIONING,WOODHOUSE HEALTH CENTRE,31798294,"100,836.67",PRC DELEGATED CO-COMMISSIONING,S13 7LY
Department of Health,NHS Sheffield CCG,4/30/2020,C&M-PMS PCN DES Participation,PRC DELEGATED CO-COMMISSIONING,WOODHOUSE HEALTH CENTRE,31798294,"1,906.58",PRC DELEGATED CO-COMMISSIONING,S13 7LY
Department of Health,NHS Sheffield CCG,4/30/2020,C&M-PMS Prem Notional Rent,PRC DELEGATED CO-COMMISSIONING,WOODHOUSE HEALTH CENTRE,31798294,"6,338.58",PRC DELEGATED CO-COMMISSIONING,S13 7LY
Department of Health,NHS Sheffield CCG,4/30/2020,C&M-PMS GP Statutory Levy,PRC DELEGATED CO-COMMISSIONING,WOODSEATS MEDICAL CENTRE,31800405,-364.81,PRC DELEGATED CO-COMMISSIONING,S8 0SH
Department of Health,NHS Sheffield CCG,4/30/2020,C&M-PMS Out of Hours Opt Outs,PRC DELEGATED CO-COMMISSIONING,WOODSEATS MEDICAL CENTRE,31800405,"-3,700.08",PRC DELEGATED CO-COMMISSIONING,S8 0SH
Department of Health,NHS Sheffield CCG,4/30/2020,C&M-PMS Contract Value,PRC DELEGATED CO-COMMISSIONING,WOODSEATS MEDICAL CENTRE,31800406,"78,663.50",PRC DELEGATED CO-COMMISSIONING,S8 0SH
Department of Health,NHS Sheffield CCG,4/30/2020,C&M-PMS PCN DES Participation,PRC DELEGATED CO-COMMISSIONING,WOODSEATS MEDICAL CENTRE,31800406,"1,439.13",PRC DELEGATED CO-COMMISSIONING,S8 0SH
Department of Health,NHS Sheffield CCG,4/30/2020,C&M-PMS PCO Locum Sickness,PRC DELEGATED CO-COMMISSIONING,WOODSEATS MEDICAL CENTRE,31800406,"7,935.84",PRC DELEGATED CO-COMMISSIONING,S8 0SH
Department of Health,NHS Sheffield CCG,4/30/2020,C&M-PMS Prem Notional Rent,PRC DELEGATED CO-COMMISSIONING,WOODSEATS MEDICAL CENTRE,31800406,"11,666.67",PRC DELEGATED CO-COMMISSIONING,S8 0SH
Department of Health,NHS Sheffield CCG,4/30/2020,C&M-PMS Prem Rates,PRC DELEGATED CO-COMMISSIONING,WOODSEATS MEDICAL CENTRE,31800406,"3,147.00",PRC DELEGATED CO-COMMISSIONING,S8 0SH
Department of Health,NHS Sheffield CCG,4/30/2020,Hcare Srv Rec Fdtn Trust-Non Contract,NCAS/OATS,YORK TEACHING HOSPITAL NHS FOUNDATION TRUST,31848493,"29,013.29",NCAS/OATS,YO30 4RY
Department of Health,NHS Sheffield CCG,4/30/2020,Hcare Srv Rec NHS Trust-Contract Baseline,AMBULANCE SERVICES,YORKSHIRE AMBULANCE SERVICE NHS TRUST,31848494,"2,402,179.62",AMBULANCE SERVICES,WF2 0XQ
